Cogmind - Beta 15 @@@ ROGUE MODE // 2025.06.28 @ 22:13:17 Player: Cracklepappy Result: Destroyed by H-88 Terminator with KE Penetrator Performance ------------- Evolutions (9) 4500 Regions Visited (34) 6800 Robots Destroyed (391) 1955 Value Destroyed (24511) 24511 Prototype IDs (56) 1120 Alien Tech Used (0) 0 Bonus (25274) 25274 TOTAL SCORE: 64160 Bonus ------- Triggered High Security 500 High Alert Combat Kills 4674 Follower Combat Kills 12333 Entered Garrisons 2200 Used RIF Installer 6500 Friendly Fire -933 Cogmind --------- Core Integrity 0/1600 Matter 79/300 Energy 100/100 System Corruption 21% Temperature Cool (0) Movement Core (50) Location -1/Access Parts ------- > --- POWER (2) -------- (None) > --- PROPULSION (5) --- (None) > --- UTILITY (14) ----- Relay Coupler [NC] (56) Relay Coupler [Sentry] (33) Relay Coupler [Hunter] (20) Relay Coupler [Behemoth] (19) Relay Coupler [Proto] (2) > --- WEAPON (4) ------- Power Sword > --- INVENTORY (5) ---- Improved Potential Cannon Micro-nuke Launcher Peak State ------------ > --- POWER ------------ Micro Antimatter Reactor Micro Antimatter Reactor > --- PROPULSION ------- Cooled Impulse Thruster Cooled Impulse Thruster Cooled Impulse Thruster Impulse Thruster Array > --- UTILITY ---------- Advanced Weight Redist. System Graphene Brace System Mapper Relay Coupler [NC] Relay Coupler [C] Relay Coupler [C] Relay Coupler [C] Relay Coupler [Sentry] Relay Coupler [Demolisher] Relay Coupler [Hunter] Relay Coupler [Heavy] Relay Coupler [Behemoth] Relay Coupler [Proto] Relay Coupler [Proto] > --- WEAPON ----------- Perforator Datajack Advanced Remote Datajack > --- INVENTORY -------- Cooled Impulse Thruster Relay Coupler [Behemoth] Improved Potential Cannon Hypervelocity Multirail [Rating: 187] Favorites ----------- Power Reinforced Deuterium Engine Engine Reinforced Deuterium Engine Power Core Reinforced Fission Core Reactor Improved Quantum Reactor Propulsion Armored Wheel Treads Light Treads Leg Flexi-carbon Leg Wheel Armored Wheel Flight Unit Cooled Impulse Thruster Utility Huge Storage Unit Device Graphene Brace Storage Huge Storage Unit Processor Core Analyzer Hackware Relay Coupler [NC] Protection Improved Medium Armor Plating Weapon Improved Assault Rifle Energy Gun Gatling Laser Energy Cannon Long-range Phase Cannon Ballistic Gun Improved Assault Rifle Ballistic Cannon Heavy Mass Driver Launcher Advanced EMP Blaster Special Weapon Remote Datajack Impact Weapon Great Maul Slashing Weapon Power Sword Piercing Weapon Heavy Pick Special Melee Weapon Advanced Datajack Build | -11 -10 -10 -9 -9 -9 -8 -8 -8 -8 -7 -7 -6 -6 -6 -6 -6 -6 -5 -5 -5 -5 -4 -4 -4 -4 -4 -4 -3 -3 -2 -2 -1 -1 -1 ------- Run | Yrd Mat Min Mat Sto Gar Mat Gar Mat Gar Fac Gar Fac Was Fac Gar Fac Gar Fac Was Fac Gar Fac Was Fac Gar Fac Gar Res Gar Res Tes Acc Gar Acc Slots Evolved 18 | . . . 2 . . 2 . . . 2 . 2 . . . . . 2 . . . 2 . . . . . 2 . 2 . 2 . . Power 1 | . . . . . . . . . . . . . . . . . . . . . . . . . . . . . . . . 1 . . Propulsion 3 | . . . 1 . . . . . . 1 . . . . . . . . . . . . . . . . . . . . . 1 . . Utility 12 | . . . . . . 1 . . . 1 . 2 . . . . . 2 . . . 2 . . . . . 2 . 2 . . . . Weapon 2 | . . . 1 . . 1 . . . . . . . . . . . . . . . . . . . . . . . . . . . . Parts Attached 395 | 7 9 2 18 19 7 23 27 4 7 2 15 2 5 . 45 . 12 2 2 8 6 5 1 16 14 9 22 24 12 14 14 4 33 5 Power 42 | 1 1 1 2 1 2 1 3 . 1 . 3 . 1 . 4 . 1 . . . . . . 1 2 2 2 3 1 1 . 3 5 . Engine 17 | 1 . 1 2 1 1 1 . . 1 . 1 . . . 3 . . . . . . . . . 1 . . . . . . . 4 . Core 9 | . 1 . . . 1 . 3 . . . 1 . 1 . . . . . . . . . . . . . 1 . . . . . 1 . Reactor 16 | . . . . . . . . . . . 1 . . . 1 . 1 . . . . . . 1 1 2 1 3 1 1 . 3 . . Propulsion 78 | 2 . 1 7 10 2 7 4 1 1 1 2 . 1 . 12 . 5 . 1 . 1 2 . 2 . . 2 4 . 4 1 . 5 . Treads 41 | 2 . 1 7 10 2 6 2 . . . . . . . 5 . 1 . . . 1 . . . . . . . . . . . 4 . Leg 2 | . . . . . . . . . . . . . . . 1 . . . . . . . . . . . . . . . . . 1 . Wheel 18 | . . . . . . . 2 1 1 1 2 . . . 3 . 4 . 1 . . 2 . 1 . . . . . . . . . . Hover . | . . . . . . . . . . . . . . . . . . . . . . . . . . . . . . . . . . . Flight 17 | . . . . . . 1 . . . . . . 1 . 3 . . . . . . . . 1 . . 2 4 . 4 1 . . . Utility 151 | 2 5 . 4 2 1 9 8 3 3 1 6 1 . . 19 . 2 2 . 2 5 2 . 4 6 2 13 10 8 5 8 1 14 3 Device 40 | 1 . . 1 2 . 1 3 1 1 1 1 . . . 5 . . 1 . 2 2 1 . 1 . 1 3 5 1 3 1 . 2 . Storage 10 | 1 2 . 1 . . . . . . . . . . . 1 . . . . . . . . . . . . 3 . . . . 2 . Processor 10 | . 2 . . . . 1 . . . . 1 1 . . 1 . 1 . . . . . . . . . . 1 . 1 1 . . . Hackware 82 | . . . . . 1 6 4 1 2 . 3 . . . 12 . 1 1 . . 3 1 . 3 6 1 10 . 7 . 6 1 10 3 Protection 9 | . 1 . 2 . . 1 1 1 . . 1 . . . . . . . . . . . . . . . . 1 . 1 . . . . Artifact . | . . . . . . . . . . . . . . . . . . . . . . . . . . . . . . . . . . . Weapon 124 | 2 3 . 5 6 2 6 12 . 2 . 4 1 3 . 10 . 4 . 1 6 . 1 1 9 6 5 5 7 3 4 5 . 9 2 Energy Gun 12 | . . . . . . . 4 . 2 . 2 . . . . . . . . . . . . . . 1 . . . 1 . . 2 . Energy Cannon 11 | . 1 . 2 . . . . . . . . . . . 3 . . . 1 . . 1 1 . . 1 . . . . 1 . . . Ballistic Gun 51 | 2 1 . 3 3 2 2 5 . . . 1 1 1 . 3 . . . . . . . . 8 3 2 2 3 2 1 1 . 3 2 Ballistic Cannon 12 | . 1 . . . . . . . . . 1 . 1 . 2 . 3 . . 2 . . . . . . 1 . . . 1 . . . Launcher 2 | . . . . . . 1 . . . . . . . . . . . . . . . . . . . . . . . . 1 . . . Special Weapon 19 | . . . . 1 . 1 . . . . . . . . 1 . 1 . . 3 . . . 1 3 . 1 3 1 1 1 . 1 . Impact Weapon 2 | . . . . 1 . 1 . . . . . . . . . . . . . . . . . . . . . . . . . . . . Slashing Weapon 3 | . . . . . . . . . . . . . 1 . . . . . . . . . . . . . . . . . . . 2 . Piercing Weapon 6 | . . . . . . 1 2 . . . . . . . 1 . . . . . . . . . . 1 . . . 1 . . . . Special Melee Weapon 6 | . . . . 1 . . 1 . . . . . . . . . . . . 1 . . . . . . 1 1 . . . . 1 . Unidentified Prototypes 18 | . . . . . . 2 . . . . . . 1 . 7 . 2 . . . 1 . . . . . . . . . 5 . . . Corrupted Parts 1 | . . . . . . . . . . . . . . . . . . . . . . . . . . . . . . . . 1 . . System Corruption 2 | . . . . . . . . . . . . . . . . . . . . . . . . . . . . . . . . 2 . . Parts Lost 68 | . 1 1 . 1 3 . . . . . 3 . . . 11 . . . . 1 1 3 . 3 6 4 8 3 2 . 2 1 1 13 Power 4 | . . . . 1 . . . . . . 1 . . . . . . . . . . . . 1 1 . . . . . . . . . Propulsion 18 | . . 1 . . 1 . . . . . 2 . . . 4 . . . . . 1 1 . 1 . . 1 2 . . . . . 4 Utility 30 | . 1 . . . 1 . . . . . . . . . 2 . . . . 1 . . . 1 2 3 5 1 1 . 2 1 1 8 Weapon 16 | . . . . . 1 . . . . . . . . . 5 . . . . . . 2 . . 3 1 2 . 1 . . . . 1 Highest Loss Streak 12 | . 1 1 . 1 2 . . . . . 1 . . . 9 . . . . 1 1 3 . 2 6 2 4 1 1 . 1 1 1 12 To Critical Strikes . | . . . . . . . . . . . . . . . . . . . . . . . . . . . . . . . . . . . Average Backups 19 | 3 11 14 22 24 24 24 24 25 24 24 23 22 21 19 20 23 23 22 22 21 23 21 22 13 4 4 4 4 5 5 4 3 18 23 Power . | . 1 . . . . . . 1 1 1 1 1 1 1 . 1 1 1 1 1 1 1 1 . . . . . . . . . 1 . Propulsion 4 | 1 4 3 2 5 6 6 5 7 7 6 4 4 4 4 4 7 7 6 6 6 6 5 6 2 2 1 . . 1 1 1 1 4 1 Utility 8 | . 2 4 5 7 10 12 10 8 9 12 12 9 8 9 9 8 8 9 8 7 9 8 9 5 2 1 3 4 4 4 1 . 7 15 Weapon 4 | 1 3 4 12 10 5 3 4 4 4 2 2 4 4 3 4 5 4 3 4 4 3 2 3 3 . . . . . . 1 2 3 3 Tool/Special . | . . . . . . . . . . . . . . . . . . . . . . . . . . . . . . . . . . . Unused Backups 111 | . 5 . 9 7 5 8 2 3 2 . 5 . 2 . 12 . 7 . 1 3 3 . . 5 . 1 3 . . . . . 10 18 Power 3 | . . . . . . 1 . . . . . . . . . . . . . . . . . . . . . . . . . . 2 . Propulsion 23 | . 3 . 1 1 2 4 . . . . . . 2 . 2 . 3 . . . 1 . . . . 1 . . . . . . 2 1 Utility 61 | . 1 . 1 1 3 2 2 1 1 . 4 . . . 8 . 4 . 1 3 2 . . 4 . . 3 . . . . . 6 14 Weapon 22 | . 1 . 7 5 . 1 . 2 . . 1 . . . 2 . . . . . . . . 1 . . . . . . . . . 2 Tool/Special 2 | . . . . . . . . . 1 . . . . . . . . . . . . . . . . . . . . . . . . 1 Average Slot Usage (%) 94 | . 99 100 99 98 100 99 98 100 99 96 97 89 92 93 86 100 89 98 100 99 90 89 88 90 91 92 89 92 84 96 96 87 83 82 Engine 4 | . 3 10 11 10 10 9 3 . 3 7 3 . . . 5 6 4 . . . . . . . 2 . . . . . . . 3 3 Core 1 | . 10 3 . . . . 5 9 5 . 2 . 1 6 . . . . . . . . . . . . . 1 . . . . 1 3 Reactor 1 | . . . . . . . . . . . 1 6 4 . . . 1 5 5 5 5 5 5 5 2 4 4 2 4 4 4 4 2 . Treads 12 | . 27 28 33 33 33 26 19 . . . . . . . 7 . 8 . . . 8 6 . . . . . . . . . . 7 11 Wheel 7 | . . . . . . . 7 26 27 30 29 26 25 26 8 26 9 23 23 23 4 4 15 6 . . . . . . . . . . Flight 2 | . . . . . . . . . . . . . . . 1 . . . . . . . . 7 15 15 19 12 9 15 16 16 4 . Device 4 | . 1 . 2 7 3 1 . 1 10 11 6 5 6 6 3 . . 4 5 8 8 9 10 10 4 8 11 6 9 12 10 8 7 3 Storage 6 | . 14 14 11 11 11 9 9 9 9 7 7 6 6 6 5 6 6 5 5 5 5 5 5 2 . . . 3 3 3 . . 2 3 Processor 3 | . 3 . . . . 4 . . . . 6 9 13 13 11 6 4 5 5 5 5 5 5 5 3 . . 3 3 3 1 4 . . Hackware 18 | . . . . . 7 10 9 2 2 . 2 6 6 6 14 26 27 28 29 25 25 30 31 33 41 41 35 39 37 39 42 39 40 42 Protection 2 | . 8 14 8 3 . . 7 13 5 7 5 6 6 6 . . . . . . . . . . . . . . . . 4 4 . . Energy Gun 3 | . . . . . . . 15 33 33 30 21 . . . . . . . . . . . . . . . . . . 2 . . 1 . Energy Cannon 2 | . 4 14 2 . . . . . . . . . . . 5 6 . . 4 4 8 10 5 2 . 2 . . . . . . . . Ballistic Gun 13 | . 17 14 29 31 31 32 15 . . . 1 10 9 6 10 6 15 11 11 9 5 4 . 5 10 8 3 4 4 4 5 . . 7 Special Weapon 2 | . . . . . . 3 1 1 1 . . . 2 6 5 6 6 5 5 3 4 4 3 3 3 3 4 4 4 4 4 4 2 3 Piercing Weapon 1 | . . . . . . . 2 . . . 2 1 . . 1 6 2 5 . . . . . 1 4 5 5 4 4 4 3 3 . . Peak Build Rating 187 | 7 11 12 20 28 28 35 43 45 47 51 62 71 80 68 99 65 88 90 95 100 116 126 113 127 124 124 127 146 147 156 177 186 187 171 Average Rating 74 | 5 9 10 17 24 26 33 38 42 44 49 52 68 69 66 81 65 81 88 92 97 110 120 111 116 116 120 115 140 135 151 158 180 165 157 On Entrance 81 | . 7 11 10 20 28 26 34 41 40 46 51 62 71 69 68 65 65 81 90 94 96 115 111 112 122 116 119 125 144 136 152 176 179 167 Naked Turns . | . . . . . . . . . . . . . . . . . . . . . . . . . . . . . . . . . . . Heaviest Build 199 | 15 34 34 99 103 103 107 111 117 113 115 131 135 142 140 142 118 124 115 123 134 134 141 144 144 30 41 37 34 32 38 42 44 196 199 Greatest Support 177 | 40 40 40 63 63 60 62 62 36 36 48 48 48 48 48 150 54 150 48 48 48 145 145 56 56 30 42 42 32 32 37 39 46 177 177 Greatest Overweight (x) 45 | . 1 . 1 1 1 1 8 4 3 2 3 2 45 2 5 2 2 2 2 2 3 3 2 5 . . . 1 . 3 1 . 1 1 Average Overweight (x) . | . . . . 1 1 1 3 3 2 2 2 2 2 2 . 2 . 2 2 2 . . 2 . . . . . . . . . . . Largest Inventory Capacity 30 | 8 15 15 25 25 25 25 25 25 25 25 25 25 25 25 25 25 25 25 25 25 25 25 25 25 5 5 5 20 5 5 5 5 30 30 Average Capacity 21 | 6 11 15 23 25 25 25 25 25 25 25 25 25 25 25 22 25 25 25 25 25 25 25 25 15 5 5 5 5 5 5 5 5 23 27 Most Carried 30 | 8 15 15 25 25 25 25 25 25 25 24 25 25 25 25 25 25 25 25 25 25 25 25 25 25 5 5 5 5 5 5 5 5 30 30 Average Carried 20 | 3 11 14 22 24 24 24 24 24 24 24 24 24 24 23 21 25 24 24 24 24 24 23 25 14 4 4 4 4 5 5 4 4 22 26 Final Capacity 30 | 8 15 15 25 25 25 25 25 25 25 25 25 25 25 25 25 25 25 25 25 25 25 25 25 5 5 5 5 5 5 5 5 5 30 5 Final Carried 30 | 8 15 14 25 25 25 25 25 25 25 24 25 25 25 25 25 25 25 24 25 25 25 25 25 5 5 5 5 5 5 5 5 5 30 3 Class Distribution -------------------- 21% | Commander-Gunner 18% | Commander-Tank 11% | Botlord-Sprinter 10% | Bothacker-Gunner 9% | Botlord-Tank 6% | Mutant 5% | Botlord-Mutant 4% | Scavenger-Tank 3% | Gunner 3% | Botlord-Gunner Dominant Class ---------------- Mutant | -10/Materials Mutant | -10/Mines Scavenger-Tank | -9/Materials Gunner | -9/Storage Bothacker-Gunner | -9/Garrison Bothacker-Gunner | -8/Materials Commander-Tank | -8/Garrison Commander-Tank | -8/Materials Commander-Tank | -8/Garrison Commander-Tank | -7/Factory Commander-Gunner | -7/Garrison Commander-Gunner | -6/Factory Commander-Gunner | -6/Waste Commander-Gunner | -6/Factory Commander-Tank | -6/Garrison Commander-Gunner | -6/Factory Commander-Tank | -6/Garrison Commander-Gunner | -5/Factory Commander-Gunner | -5/Waste Commander-Gunner | -5/Factory Botlord-Tank | -5/Garrison Botlord-Tank | -4/Factory Botlord-Gunner | -4/Waste Botlord-Sprinter | -4/Factory Botlord-Sprinter | -4/Garrison Botlord-Sprinter | -4/Factory Botlord-Sprinter | -4/Garrison Botlord-Sprinter | -3/Research Botlord-Mutant | -3/Garrison Botlord-Sprinter | -2/Research Botlord-Sprinter | -2/Testing Botlord-Sprinter | -1/Access Botlord-Tank | -1/Garrison Botlord-Tank | -1/Access Resources | -11 -10 -10 -9 -9 -9 -8 -8 -8 -8 -7 -7 -6 -6 -6 -6 -6 -6 -5 -5 -5 -5 -4 -4 -4 -4 -4 -4 -3 -3 -2 -2 -1 -1 -1 ----------- Run | Yrd Mat Min Mat Sto Gar Mat Gar Mat Gar Fac Gar Fac Was Fac Gar Fac Gar Fac Was Fac Gar Fac Was Fac Gar Fac Gar Res Gar Res Tes Acc Gar Acc Matter Collected 21256 | 288 699 203 706 800 633 1154 1029 47 319 . 375 144 544 23 2351 . 878 . 226 287 663 241 . 1006 1321 434 922 863 773 724 555 581 2022 445 Remotely . | . . . . . . . . . . . . . . . . . . . . . . . . . . . . . . . . . . . Salvage Created 21834 | 135 680 323 975 1350 1011 1223 753 112 1037 . 1013 374 1173 . 1852 . 1398 . 582 274 309 317 . 605 909 512 340 587 405 656 906 445 1331 247 Parts 1076 | 12 37 23 57 81 67 77 50 3 50 . 43 18 13 . 78 . 49 . 1 22 8 13 . 50 38 24 19 36 25 23 63 17 62 17 Haulers Intercepted 16 | . 2 . 5 5 . 4 . . . . . . . . . . . . . . . . . . . . . . . . . . . . Recyclers Shooed 6 | 1 1 1 1 1 . . . . . . . . . . . . . . . . . . . . . . . . . . . 1 . . Parts Field Recycled . | . . . . . . . . . . . . . . . . . . . . . . . . . . . . . . . . . . . Retrieved Matter . | . . . . . . . . . . . . . . . . . . . . . . . . . . . . . . . . . . . Parts Self-Destructed . | . . . . . . . . . . . . . . . . . . . . . . . . . . . . . . . . . . . Prevented . | . . . . . . . . . . . . . . . . . . . . . . . . . . . . . . . . . . . Kills | -11 -10 -10 -9 -9 -9 -8 -8 -8 -8 -7 -7 -6 -6 -6 -6 -6 -6 -5 -5 -5 -5 -4 -4 -4 -4 -4 -4 -3 -3 -2 -2 -1 -1 -1 ------- Run | Yrd Mat Min Mat Sto Gar Mat Gar Mat Gar Fac Gar Fac Was Fac Gar Fac Gar Fac Was Fac Gar Fac Was Fac Gar Fac Gar Res Gar Res Tes Acc Gar Acc Combat Hostiles Destroyed 301 | . 10 11 17 21 24 23 17 2 31 . 26 3 4 . 20 . 8 . 2 5 7 3 . 12 7 8 3 6 3 6 11 3 5 3 Melee 34 | . . . . . . . 2 . . . . . . . 4 . . . . . . . . 1 1 3 2 4 1 6 10 . . . Guns 224 | . 4 4 17 21 24 23 15 2 31 . 26 2 3 . 11 . 8 . 1 4 3 . . 7 6 3 . 2 2 . 1 . 2 2 Cannons 39 | . 6 7 . . . . . . . . . . 1 . 5 . . . . 1 3 3 . 4 . 2 1 . . . . 3 3 . AOE 3 | . . . . . . . . . . . . 1 . . . . . . . . 1 . . . . . . . . . . . . 1 Classes Destroyed 22 | 3 4 1 3 1 1 . 4 . 2 . . . 1 . . . 1 . . . . . . . . . . . . . 1 . . . Worker 13 | 1 3 . 2 2 . 3 . . . . . . . . . . . . . . . . . . . . . . . . 1 . . 1 Builder 7 | . . . 2 . . . . . . . . 1 . . . . . . . . . . . 1 . 2 . . . . . . . 1 Tunneler 6 | 3 . 1 1 . . . . . . . . 1 . . . . . . . . . . . . . . . . . . . . . . Hauler 16 | . 2 . 5 5 . 4 . . . . . . . . . . . . . . . . . . . . . . . . . . . . Recycler 8 | 1 1 . . 1 . . . . . . . 1 . . . . . . . . . 1 . . . 1 . . . 1 . 1 . . Mechanic 2 | . . . . 1 . . . . . . . 1 . . . . . . . . . . . . . . . . . . . . . . Operator 5 | . 1 . . 1 . . . 1 . . . . . . . . . . . . . . . . . . . . . . 1 1 . . Watcher 13 | . 3 . 2 1 . 4 . . 2 . . . . . . . . . . . . . . . . . . . 1 . . . . . Swarmer 56 | . . 6 5 3 3 10 3 . 10 . 6 . . . . . . . . . 1 . . 1 . 3 1 . 1 . . . 3 . Cutter 4 | . . . . . . . 1 . . . . . . . . . . . . . . . . 3 . . . . . . . . . . Saboteur 1 | . . . . . . . 1 . . . . . . . . . . . . . . . . . . . . . . . . . . . Grunt 111 | . 10 5 8 6 13 8 8 1 8 . 9 . . . 9 . 8 . . 1 2 . . . 1 . 2 5 1 1 1 . 3 1 Brawler 6 | . . . 1 . . 1 1 . 1 . . . . . . . . . . . . . . . 2 . . . . . . . . . Duelist 8 | . . . . . . . . . 4 . . . . . 2 . . . . . . . . . . . . . . . 1 . 1 . Researcher 1 | . . . . . . . . . . . . . . . . . . . . . . . . . . . . . . . 1 . . . Sentry 40 | . . . 3 12 4 4 . 1 1 . 4 2 . . 4 . . . . . . . . 1 1 1 . 1 . . . 1 . . Demolisher 1 | . . . . . . . . . 1 . . . . . . . . . . . . . . . . . . . . . . . . . Specialist 8 | . . . . . . . 1 . 2 . . . . . 2 . . . . . 2 . . . . . . . . . 1 . . . Hunter 21 | . . . . . . . 3 . 2 . 3 1 . . 2 . . . . . . 2 . 3 . . . . . 4 . 1 . . Programmer 54 | . . . . . 4 . . . 2 . 5 . . . 1 . 1 . . 4 2 2 . 4 4 4 1 2 2 2 8 1 3 2 Behemoth 1 | . . . . . . . . . . . . . . . . . 1 . . . . . . . . . . . . . . . . . Compactor 6 | . . . . . . . . . . . . . 4 . . . . . 2 . . . . . . . . . . . . . . . Thug 2 | . . . . . . . . . . . . . . . 2 . . . . . . . . . . . . . . . . . . . Martyr 1 | . . . . . . . . . . . . . 1 . . . . . . . . . . . . . . . . . . . . . Best Kill Streak 9 | 2 7 4 3 9 6 5 3 2 5 . 5 4 2 . 3 . 3 . 1 3 2 2 . 3 3 3 1 2 1 3 3 3 3 3 Combat Bots Only 6 | . 3 3 3 5 6 3 3 1 5 . 5 2 2 . 3 . 3 . 1 3 2 2 . 3 3 2 1 2 1 2 3 1 3 2 Max Kills in Single Turn 3 | 1 2 2 2 2 3 3 1 1 2 . 2 3 1 . 2 . 1 . 1 2 1 1 . 2 1 2 1 1 1 1 1 2 2 2 Gunslinging 2 | . . . 1 1 2 1 . . 1 . 1 . . . . . . . . . . . . 1 . . . . . . . . . . Exploded 1 | . . . . . . . . . . . . 1 . . . . . . . . 1 . . . . . . . . . . . . 1 Melee 1 | . . . . . . . 1 . . . . . . . 1 . . . . . . . . 1 1 1 1 1 1 1 1 . . . Uniques/NPCs Destroyed . | . . . . . . . . . . . . . . . . . . . . . . . . . . . . . . . . . . . Combat | -11 -10 -10 -9 -9 -9 -8 -8 -8 -8 -7 -7 -6 -6 -6 -6 -6 -6 -5 -5 -5 -5 -4 -4 -4 -4 -4 -4 -3 -3 -2 -2 -1 -1 -1 -------- Run | Yrd Mat Min Mat Sto Gar Mat Gar Mat Gar Fac Gar Fac Was Fac Gar Fac Gar Fac Was Fac Gar Fac Was Fac Gar Fac Gar Res Gar Res Tes Acc Gar Acc Hostile Shots Fired 2038 | . 68 35 53 84 80 67 75 5 45 . 76 62 . . 393 . 30 . . 18 128 36 . 89 73 52 53 58 17 24 41 27 62 287 Missed 670 | . 22 6 10 25 22 27 18 . 13 . 21 30 . . 115 . 6 . . 11 49 10 . 30 23 17 15 36 10 9 14 12 27 92 Hits 1368 | . 46 29 43 59 58 40 57 5 32 . 55 32 . . 278 . 24 . . 7 79 26 . 59 50 35 38 22 7 15 27 15 35 195 Melee 27 | . . . 2 . 1 . 4 . 1 . . . . . . . . . . . 6 . . 7 . . . . . . . . . 6 Projectile 1341 | . 46 29 41 59 57 40 53 5 31 . 55 32 . . 278 . 24 . . 7 73 26 . 52 50 35 38 22 7 15 27 15 35 189 AOE 10 | . . . . . . . 1 . . . . . . . . . 1 . . . . . . . . 1 . . 1 . . . 2 4 Critical Strikes 53 | . 2 . . 1 6 2 1 . 1 . 1 . . . 5 . . . . . 1 2 . 9 1 3 4 2 1 2 1 1 . 7 Actively Blocked 26 | . . . . . . . . . . . . . . . . . . . . . . 1 . 9 1 2 4 2 1 2 1 1 . 2 Part Disruptions 8 | . . . . . . . . . . . . . . . 6 . . . . . . . . 1 1 . . . . . . . . . Damage Taken 22167 | . 588 249 536 768 749 491 804 88 380 . 694 308 13 . 3866 . 355 . 21 195 900 538 . 1148 896 872 909 398 302 405 703 363 851 3777 Core 4370 | . 79 29 59 49 93 63 108 20 20 . 84 28 . . 664 . 64 . . 43 137 39 . 234 227 130 193 16 44 144 201 23 168 1411 Absorbed by Shields 1692 | . . . . . . . . . 8 . 64 . . . 426 . 166 . . . 443 . . 6 136 . 19 . 12 . . . 75 337 Reduced by Siege Mode 126 | . . . . . . . . . . . . . . . 126 . . . . . . . . . . . . . . . . . . . Redirected to Shielding 87 | . . . . . . . . . . . . . . . . . . . . . . . . . . . . . . . 71 16 . . Regen/Repaired (Parts) 1073 | . 114 . . 80 . . . . 15 . . . 178 9 39 . . . . . . 97 . 75 . 180 . 49 . . 120 . . 117 Core Remaining (%) 64 | 100 . 56 . . 49 . . . 61 . 88 . . . . . 11 . . . 82 . . . . . 28 . 95 . 76 . . . Volleys Fired 1506 | 13 55 26 54 58 46 85 50 8 45 . 50 9 23 5 130 4 60 . 29 19 81 21 7 55 77 48 62 62 69 42 28 18 112 55 Largest 4 | 2 2 2 3 3 3 4 4 4 4 . 4 3 2 1 4 1 3 . 3 4 4 3 1 3 3 3 3 1 1 1 2 1 1 2 Hottest 320 | 40 68 88 204 69 69 92 320 320 320 . 320 131 98 5 315 5 99 . 171 229 290 275 10 290 105 164 164 40 33 10 63 100 100 80 Shots Fired 2759 | 26 109 52 162 172 136 229 140 19 145 . 145 27 30 5 215 5 104 . 63 32 125 43 7 99 111 67 68 62 69 42 33 18 127 72 Gun 1706 | 26 71 26 145 172 136 194 125 15 137 . 131 18 15 . 112 . 71 . 34 11 21 9 . 51 60 22 7 13 16 . 9 . 26 33 Cannon 329 | . 38 26 17 . . . . . . . . 9 7 . 37 1 . . 24 10 68 24 . 24 . 10 6 . . . . 14 14 . Launcher . | . . . . . . . . . . . . . . . . . . . . . . . . . . . . . . . . . . . Special 724 | . . . . . . 35 15 4 8 . 14 . 8 5 66 4 33 . 5 11 36 10 7 24 51 35 55 49 53 42 24 4 87 39 Kinetic 1526 | 26 108 26 145 172 136 194 113 . . . . 27 22 . 133 . 71 . 34 13 38 11 . 62 60 22 11 13 16 . 9 14 17 33 Thermal 509 | . 1 26 17 . . . 12 15 137 . 131 . . . 16 1 . . 24 8 51 22 . 13 . 10 2 . . . . . 23 . Explosive . | . . . . . . . . . . . . . . . . . . . . . . . . . . . . . . . . . . . Electromagnetic . | . . . . . . . . . . . . . . . . . . . . . . . . . . . . . . . . . . . Robot Hit Streak 27 | 8 14 10 9 19 14 27 17 10 18 . 23 8 5 4 17 3 16 . 25 6 19 6 4 7 9 9 9 23 14 16 7 4 12 11 Robot Miss Streak 15 | 3 5 4 4 2 2 4 5 2 4 . 5 4 2 1 3 1 2 . 4 3 4 4 1 6 7 3 4 3 2 2 2 15 11 3 Penetration Max 3 | . . . . . . . . . . . . . 1 . 1 . 1 . . 1 . . . 1 2 1 . 1 1 . 1 1 1 3 Secondary Targets 43 | . . . 6 3 7 5 6 1 4 . 5 . . . 3 . . . . . . . . 2 1 . . . . . . . . . Max Gunslinging Chain 2 | . . . 1 2 2 1 1 1 1 . 1 . . . 1 . . . . . . . . 1 1 . . . . . . . . . Autonomous 11 | . . . . . . . . . . . . . . . . . . . . . . . . . . . . . . . . . 11 . Shots Hit Robots 2017 | 15 71 27 100 122 91 151 88 12 94 . 100 14 30 4 167 3 117 . 40 14 63 25 5 54 87 48 59 56 59 59 51 16 124 51 Core Hits 770 | 5 32 15 42 49 40 55 36 8 72 . 78 18 9 . 53 . 38 . 6 10 13 6 . 24 27 14 7 9 9 10 19 21 34 11 Critical Kills 23 | . . . . . . . . . . . . . . . . . 3 . 1 2 1 1 . 1 . . . 2 . . . 5 6 1 Critical Parts Destroyed 30 | . . . . 1 . . . . . . . 1 1 . 2 . 1 . . . 1 . . . 1 . . . . . . 12 8 2 Critical Strikes 96 | . 2 . . 1 . 1 2 . . . 1 1 5 . 6 . 11 . 4 2 2 1 . 2 5 . 3 4 1 3 3 17 15 4 Meltdown 1 | . . . . . . . . . . . . . . . . . . . 1 . . . . . . . . . . . . . . . Destroy 57 | . . . . 1 . 1 . . . . . 1 1 . 2 . 4 . 3 2 2 1 . 1 1 . . 2 . . . 17 14 4 Blast 5 | . 2 . . . . . . . . . . . . . 3 . . . . . . . . . . . . . . . . . . . Sever 5 | . . . . . . . . . . . . . 4 . . . . . . . . . . . . . . . . . . . 1 . Impale 28 | . . . . . . . 2 . . . 1 . . . 1 . 7 . . . . . . 1 4 . 3 2 1 3 3 . . . Melee Attacks 429 | . . . . 1 6 9 20 1 2 . 6 . 9 . 39 . 51 . . . . . . 15 35 10 25 10 14 32 43 . 94 7 Impact 12 | . . . . 1 6 5 . . . . . . . . . . . . . . . . . . . . . . . . . . . . Slashing 95 | . . . . . . . . . . . . . 9 . . . . . . . . . . . . . . . . . . . 84 2 Piercing 298 | . . . . . . 4 20 1 2 . 6 . . . 39 . 51 . . . . . . 7 35 10 25 9 14 32 43 . . . Sneak Attacks 81 | . . . . . . . . . . . . . 9 . . . . . . . . . . 6 4 3 8 7 3 21 8 . 10 2 Combat Hostiles 43 | . . . . . . . . . . . . . . . . . . . . . . . . 1 2 1 8 6 1 19 5 . . . Follow-up Attacks . | . . . . . . . . . . . . . . . . . . . . . . . . . . . . . . . . . . . Damage Inflicted 43273 | 231 1054 507 1660 1947 1458 1954 1379 181 1974 . 2194 869 968 . 4737 . 3431 . 1124 325 1017 800 . 1593 2534 1085 1535 838 771 1911 1930 121 2625 520 Guns 22047 | 229 640 213 1475 1904 1458 1951 1070 181 1974 . 2065 239 327 . 1941 . 1072 . 651 227 293 141 . 685 1075 539 117 144 272 . 163 . 481 520 Cannons 5810 | . 414 266 143 . . . . . . . . 404 291 . 1056 . . . 473 85 724 659 . 685 . 228 141 . . . . 121 120 . Explosions 337 | . . . . . . . . . . . . 226 . . . . . . . . . . . 111 . . . . . . . . . . Melee 14917 | . . . . . . . 309 . . . 129 . 350 . 1740 . 2359 . . . . . . 81 1459 318 1277 694 499 1911 1767 . 2024 . Ramming 162 | 2 . 28 42 43 . 3 . . . . . . . . . . . . . 13 . . . 31 . . . . . . . . . . Kinetic 20609 | 229 1054 213 1475 1904 1458 1951 881 . . . . 643 618 . 2952 . 1072 . 651 227 655 281 . 1163 1075 539 175 144 272 . 163 121 173 520 Thermal 7274 | . . 266 143 . . . 189 181 1974 . 2065 . . . 45 . . . 473 85 362 519 . 233 . 228 83 . . . . . 428 . Explosive . | . . . . . . . . . . . . . . . . . . . . . . . . . . . . . . . . . . . Electromagnetic 311 | . . . . . . . . . . . . 226 . . . . . . . . . . . 85 . . . . . . . . . . Impact . | . . . . . . . . . . . . . . . . . . . . . . . . . . . . . . . . . . . Slashing 2374 | . . . . . . . . . . . . . 350 . . . . . . . . . . . . . . . . . . . 2024 . Piercing 12543 | . . . . . . . 309 . . . 129 . . . 1740 . 2359 . . . . . . 81 1459 318 1277 694 499 1911 1767 . . . Highest Corruption 50 | . . . . . 7 . . . 1 . . . . . 5 5 5 . . 3 3 5 20 29 35 45 50 1 1 4 7 3 4 21 Average Corruption 8 | . . . . . 2 . . . 1 . . . . . 4 5 5 . . 2 3 4 14 24 34 41 49 1 1 3 5 2 3 6 Corruption Purged . | . . . . . . . . . . . . . . . . . . . . . . . . . . . . . . . . . . . Corruption Blocked . | . . . . . . . . . . . . . . . . . . . . . . . . . . . . . . . . . . . Effects 689 | . . . . . 27 . . . 13 . . . . . 99 7 103 . . 5 47 4 7 71 54 42 63 5 5 14 23 1 79 20 Message Errors 170 | . . . . . 7 . . . 4 . . . . . 28 1 26 . . 1 14 1 2 13 7 9 16 2 . 2 5 . 28 4 Matter Fused 161 | . . . . . 6 . . . 1 . . . . . 28 1 28 . . 1 11 . . 12 18 9 11 1 2 5 8 . 14 5 Heat Flow Errors 74 | . . . . . 4 . . . 1 . . . . . 10 1 9 . . 1 6 1 1 11 6 1 4 1 . 1 3 . 11 2 Energy Discharges 75 | . . . . . 4 . . . 2 . . . . . 12 . 12 . . 1 4 1 1 10 3 3 6 . 1 2 3 1 7 2 Parts Rejected 5 | . . . . . . . . . . . . . . . . . . . . . . . . 1 . 2 . . . . 1 . . 1 Parts Fused 9 | . . . . . . . . . 1 . . . . . 1 . 2 . . . 1 . . 2 . . 2 . . . . . . . Data Loss (minor) 90 | . . . . . 2 . . . 2 . . . . . 11 3 15 . . 1 2 1 . 12 8 8 8 . . 4 1 . 10 2 Data Loss (major) 26 | . . . . . . . . . 1 . . . . . 3 . 7 . . . 3 . . 2 1 1 3 . 1 . . . 2 2 Misfires 27 | . . . . . 3 . . . 1 . . . . . 2 1 2 . . . 4 . . 2 2 1 3 . . . 1 . 4 1 Alerts 17 | . . . . . . . . . . . . . . . 3 . 1 . . . . . . 1 3 . 3 1 1 . 1 . 3 . Misdirections 20 | . . . . . . . . . . . . . . . . . . . . . . . 3 2 3 5 6 . . . . . . 1 Weapon Failures 15 | . . . . . 1 . . . . . . . . . 1 . 1 . . . 2 . . 3 3 3 1 . . . . . . . Overload Shots . | . . . . . . . . . . . . . . . . . . . . . . . . . . . . . . . . . . . Overflow Damage 1585 | . . . 4 . . . 95 . . . 66 119 9 . 37 . 116 . . . 39 65 . 64 74 13 222 75 59 49 230 . 249 . Projectiles 305 | . . . 3 . . . . . . . . 119 . . . . . . . . 39 65 . 64 . 13 2 . . . . . . . Explosions . | . . . . . . . . . . . . . . . . . . . . . . . . . . . . . . . . . . . Melee 1280 | . . . 1 . . . 95 . . . 66 . 9 . 37 . 116 . . . . . . . 74 . 220 75 59 49 230 . 249 . Knockbacks 25 | . 6 . . . . . . . . . . 1 . . 3 . . . . . 5 . . 2 . . . . . . . 2 6 . Impact 1 | . . . . . . . . . . . . . . . . . . . . . . . . 1 . . . . . . . . . . Kinetic 23 | . 6 . . . . . . . . . . 1 . . 3 . . . . . 5 . . 1 . . . . . . . 2 5 . Secondary 1 | . . . . . . . . . . . . . . . . . . . . . . . . . . . . . . . . . 1 . Self-Inflicted Damage 90 | . . . . . . . . . . . . . . . . . . . . 6 . . . 84 . . . . . . . . . . Shots 2 | . . . . . . . . . . . . . . . . . . . . . . . . 2 . . . . . . . . . . Rammed 20 | . . 5 5 4 . 1 . . . . . . . . . . . . . 3 . . . 2 . . . . . . . . . . Targets Rammed 23 | 1 . 5 6 5 . 1 . . . . . . . . . . . . . 3 . . . 2 . . . . . . . . . . Kicked . | . . . . . . . . . . . . . . . . . . . . . . . . . . . . . . . . . . . Crushed 3 | 1 . . 1 1 . . . . . . . . . . . . . . . . . . . . . . . . . . . . . . Highest Temperature 502 | . 70 307 312 125 203 50 502 327 466 . 487 5 . . 286 244 267 . . 210 143 161 46 237 261 454 139 208 . 138 192 16 237 172 Average Temperature 79 | . 32 112 59 23 27 10 96 147 151 . 140 5 . . 83 101 49 . . 75 40 55 46 81 113 120 69 108 . 80 88 8 73 67 Received Heat Transfer 3065 | . 366 24 162 318 198 189 183 45 99 . 151 45 . . 586 . 98 . . . 189 . . 9 84 78 54 21 36 . 9 . 72 49 Effects 15 | . . . 1 . . . 2 1 2 . 3 . . . 1 . . . . . . . . . . 5 . . . . . . . . Shutdowns 5 | . . . . . . . 2 . . . 2 . . . . . . . . . . . . . . 1 . . . . . . . . Energy Bleed 6 | . . . 1 . . . . 1 2 . 1 . . . 1 . . . . . . . . . . . . . . . . . . . Interference 3 | . . . . . . . . . . . . . . . . . . . . . . . . . . 3 . . . . . . . . Matter Decay 1 | . . . . . . . . . . . . . . . . . . . . . . . . . . 1 . . . . . . . . Siege Activations 2 | . . . . . . . . . . . . . . . 2 . . . . . . . . . . . . . . . . . . . Total Turns 35 | . . . . . . . . . . . . . . . 35 . . . . . . . . . . . . . . . . . . . Longest Duration 21 | . . . . . . . . . . . . . . . 21 . . . . . . . . . . . . . . . . . . . Martial Activations . | . . . . . . . . . . . . . . . . . . . . . . . . . . . . . . . . . . . Shielding Activations . | . . . . . . . . . . . . . . . . . . . . . . . . . . . . . . . . . . . Robots Disrupted . | . . . . . . . . . . . . . . . . . . . . . . . . . . . . . . . . . . . Combat Hostiles . | . . . . . . . . . . . . . . . . . . . . . . . . . . . . . . . . . . . Robots Corrupted 1 | . . . 1 . . . . . . . . . . . . . . . . . . . . . . . . . . . . . . . Combat Hostiles . | . . . . . . . . . . . . . . . . . . . . . . . . . . . . . . . . . . . Parts Fried 4 | . . . 3 . . . . . . . . 1 . . . . . . . . . . . . . . . . . . . . . . Impact Corruptions 1 | . . . 1 . . . . . . . . . . . . . . . . . . . . . . . . . . . . . . . Robots Melted 1 | . . . . . . . . . . . . . . . . . . . 1 . . . . . . . . . . . . . . . Combat Hostiles 1 | . . . . . . . . . . . . . . . . . . . 1 . . . . . . . . . . . . . . . Parts Melted 34 | . . . 1 1 . . 1 3 7 . 13 . . . 1 . . . 2 . . . . . . . . 2 . 3 . . . . Heat Transferred 12928 | . . 481 259 . . . 425 425 4400 . 4425 . . . 37 . . . 481 74 370 444 . 235 . 300 100 . . . . . 472 . Parts Sabotaged 9 | . . . . . . . 9 . . . . . . . . . . . . . . . . . . . . . . . . . . . Parts Stolen . | . . . . . . . . . . . . . . . . . . . . . . . . . . . . . . . . . . . Parts Stripped . | . . . . . . . . . . . . . . . . . . . . . . . . . . . . . . . . . . . Power Chain Reactions 2 | . . . . . . . . . . . . 1 . . . . . . . . . . . 1 . . . . . . . . . . Alert | -11 -10 -10 -9 -9 -9 -8 -8 -8 -8 -7 -7 -6 -6 -6 -6 -6 -6 -5 -5 -5 -5 -4 -4 -4 -4 -4 -4 -3 -3 -2 -2 -1 -1 -1 ------- Run | Yrd Mat Min Mat Sto Gar Mat Gar Mat Gar Fac Gar Fac Was Fac Gar Fac Gar Fac Was Fac Gar Fac Was Fac Gar Fac Gar Res Gar Res Tes Acc Gar Acc Maximum Alert Level 5 | . . . . . 4 2 5 3 5 3 5 4 2 . 5 5 5 5 3 2 4 3 1 1 4 3 4 3 4 3 3 3 5 5 Low Security (%) 29 | 100 100 100 100 100 13 72 24 . . . . . 64 100 5 . . . . 39 3 . . 69 . . . . . . . . . . Level 1 9 | . . . . . 33 18 11 . . . . . 26 . 3 . . . 44 54 16 . 100 30 15 . . . . 19 17 . . . Level 2 11 | . . . . . 10 9 14 71 11 . . . 8 . 18 . . . 48 5 25 . . . 35 46 29 2 . 38 52 46 . . Level 3 15 | . . . . . 41 . 15 28 15 100 37 4 . . 14 . . . 6 . 37 100 . . 26 53 26 97 25 41 30 53 3 . Level 4 10 | . . . . . . . 20 . 60 . 15 95 . . 8 . 5 . . . 17 . . . 22 . 43 . 74 . . . 7 . Level 5 21 | . . . . . . . 12 . 12 . 46 . . . 49 100 94 100 . . . . . . . . . . . . . . 88 28 High Security . | . . . . . . . . . . . . . . . . . . . . . . . . . . . . . . . . . . 71 Max Security . | . . . . . . . . . . . . . . . . . . . . . . . . . . . . . . . . . . . Peak Influence 4271 | 5 121 135 154 169 1108 540 1880 916 1780 934 2146 1365 470 15 3620 1905 4271 2242 767 418 1359 987 280 353 1157 781 1389 1095 1569 901 814 818 3575 3244 Initial 2242 | . . . 47 44 11 540 10 916 420 934 633 1126 470 . . 1900 1287 2242 767 170 186 713 280 154 211 606 441 780 755 882 380 484 651 2144 Average 968 | . 25 31 42 48 529 147 763 686 1197 920 1404 1199 164 1 1780 1876 2887 2219 456 235 755 829 254 181 748 697 983 871 1256 642 627 669 2268 2577 Influence Increases 33823 | 25 406 386 792 687 1127 768 1930 221 1410 1 1603 369 6 30 4130 29 3174 . 34 763 1363 563 . 1124 1126 582 1148 937 1164 1062 1113 570 3324 1856 Destroy 0b10 Robot/C 11700 | . 200 280 480 420 520 480 440 80 740 . 840 80 . . 1060 . 660 . . 260 400 180 . 460 460 260 440 380 460 360 420 200 440 700 Destroy 0b10 Robot/NC 715 | 25 50 5 60 55 . 55 10 20 10 . 5 20 . 5 30 . 45 . . 10 . 20 . 20 20 25 10 10 15 20 35 20 30 85 Destroy Leader 1508 | . 70 30 134 152 30 116 10 34 30 . 20 30 . 2 60 . 70 . . 64 . 36 . 112 50 62 30 32 30 86 56 52 30 80 Allied During Kill 6682 | . . 56 53 . 5 11 30 46 79 . 149 101 . 7 660 . 747 . . 334 181 236 . 210 155 116 375 406 384 458 464 220 424 775 Trap Triggered on 0b10 10 | . . . . . . . . . . . . . . . . . . . . 10 . . . . . . . . . . . . . . Successful Hack 642 | . 71 . 33 11 42 36 32 14 26 . . . . . 23 28 16 . . 17 14 13 . 37 32 28 40 24 . 42 12 15 36 . Disable Machine 705 | . 15 15 . 45 . 15 45 . . . . 135 . 15 . . 15 . . 30 30 45 . 90 . 30 . 15 . 30 75 . 45 15 Anti-Garrison Action 9900 | . . . . . 500 . 1300 . 450 . 550 . . . 2150 . 1600 . . . 650 . . . 400 . 200 . 250 . . . 1850 . Destroy Structure 1316 | . . . 2 4 30 10 48 27 15 1 24 3 6 1 57 1 21 . 34 38 58 18 . 90 9 16 53 40 25 21 21 63 409 171 Partial Spotted 195 | . . . . . . . . . . . 15 . . . 15 . . . . . . . . 15 . 15 . 30 . 30 30 . 45 . Lose Combat Pursuer 450 | . . . 30 . . 45 15 . 60 . . . . . 75 . . . . . 30 15 . 90 . 30 . . . 15 . . 15 30 Influence Decreases 30753 | 25 406 263 810 774 37 1860 66 1454 277 876 362 1170 1351 30 510 1810 742 2079 1983 739 271 1120 582 1042 271 1109 389 1319 602 1954 981 565 563 2361 Entered New Map 16631 | . . . 76 61 7 568 6 964 227 846 272 1020 875 . . 1720 552 2029 1425 73 81 646 522 66 91 551 189 609 252 687 297 325 163 1431 Time Decay 6675 | 25 396 233 539 546 . 732 . 190 . 30 . 110 396 30 . 90 . 50 538 386 . 294 60 506 . 278 . 350 . 342 374 100 . 80 Lost Part 680 | . 10 10 . 10 30 . . . . . 30 . . . 110 . . . . 10 10 30 . 30 60 40 80 30 20 . 20 10 10 130 Lost Ally 4215 | . . 20 45 . . 40 60 . 50 . 60 40 80 . 400 . 190 . 20 120 180 . . 290 120 240 120 330 330 250 140 130 240 720 Purge Threat 2552 | . . . 150 157 . 520 . 300 . . . . . . . . . . . 150 . 150 . 150 . . . . . 675 150 . 150 . Squads Dispatched 71 | . 3 1 1 1 . 1 . 2 . . . . . . . . . . . 5 . 2 . 12 . 9 . 6 . 4 6 2 . 16 Investigation 11 | . 1 . 1 . . 1 . 1 . . . . . . . . . . . . . 1 . 3 . 2 . . . . . 1 . . Extermination 13 | . . . . . . . . . . . . . . . . . . . . 2 . 1 . 4 . 2 . . . 2 2 . . . Reinforcement 20 | . 2 . . . . . . . . . . . . . . . . . . 1 . . . 5 . 5 . 1 . 1 3 . . 2 Assault 24 | . . 1 . . . . . . . . . . . . . . . . . 2 . . . . . . . 5 . 1 1 . . 14 Garrison 3 | . . . . 1 . . . 1 . . . . . . . . . . . . . . . . . . . . . . . 1 . . Intercept . | . . . . . . . . . . . . . . . . . . . . . . . . . . . . . . . . . . . Searches Triggered . | . . . . . . . . . . . . . . . . . . . . . . . . . . . . . . . . . . . Construction Impeded 4 | . . . . . . . . . . . . . . . . . . . . 1 . . . 1 . 1 . . . . . . . 1 Haulers Reinforced 3 | . . . . . . . . . . . . . . . . . . . . . . . . 1 . . . 1 . . . . . 1 Active Scanning Responses . | . . . . . . . . . . . . . . . . . . . . . . . . . . . . . . . . . . . Cargo Convoy Interrupts 1 | . . . . . . . . . . . . . . . . . . . . 1 . . . . . . . . . . . . . . Stealth | -11 -10 -10 -9 -9 -9 -8 -8 -8 -8 -7 -7 -6 -6 -6 -6 -6 -6 -5 -5 -5 -5 -4 -4 -4 -4 -4 -4 -3 -3 -2 -2 -1 -1 -1 --------- Run | Yrd Mat Min Mat Sto Gar Mat Gar Mat Gar Fac Gar Fac Was Fac Gar Fac Gar Fac Was Fac Gar Fac Was Fac Gar Fac Gar Res Gar Res Tes Acc Gar Acc Distress Signals 39 | . . 1 2 4 . 2 . 2 . . . . . . 1 . 1 . . 3 . . . 6 . 4 . 3 . 3 1 1 . 5 Communications Jammed 344 | . . . . . . . . . . . . . . . . . . . . . . . . . . . . 30 . 45 89 . 9 171 Distress Signals 344 | . . . . . . . . . . . . . . . . . . . . . . . . . . . . 30 . 45 89 . 9 171 Times Spotted 881 | . 13 13 44 32 26 49 32 9 34 . 36 4 3 2 72 . 38 . 4 12 44 12 6 41 40 37 37 28 29 29 40 15 44 56 Peak Tracking Total 14 | . 4 4 4 5 3 4 5 4 8 . 6 2 2 1 14 . 7 . 2 3 8 4 3 7 12 6 9 4 4 7 6 5 3 14 Tactical Retreats 22 | . . . 1 . . 3 1 . 1 . . . . . 3 . . . . . 2 1 . 5 . 2 . . . 1 . . 1 1 Traps | -11 -10 -10 -9 -9 -9 -8 -8 -8 -8 -7 -7 -6 -6 -6 -6 -6 -6 -5 -5 -5 -5 -4 -4 -4 -4 -4 -4 -3 -3 -2 -2 -1 -1 -1 ------- Run | Yrd Mat Min Mat Sto Gar Mat Gar Mat Gar Fac Gar Fac Was Fac Gar Fac Gar Fac Was Fac Gar Fac Was Fac Gar Fac Gar Res Gar Res Tes Acc Gar Acc Traps Triggered 56 | . 3 . 1 1 2 . 4 . 4 . 4 2 . . 7 . 4 1 . 1 3 1 . 1 1 1 4 3 4 2 . . 2 . Indirectly 1 | . . . . . . . . . . . . 1 . . . . . . . . . . . . . . . . . . . . . . Trap Hack Attempts 63 | . . . . 6 . . 12 . 2 . . . . . . . . . . 18 . . . . . . 3 22 . . . . . . Triggered . | . . . . . . . . . . . . . . . . . . . . . . . . . . . . . . . . . . . Disarmed 4 | . . . . . . . 1 . . . . . . . . . . . . 1 . . . . . . 1 1 . . . . . . Reprogrammed 11 | . . . . 2 . . 3 . 1 . . . . . . . . . . 2 . . . . . . . 3 . . . . . . Reused 1 | . . . . . . . . . . . . . . . . . . . . 1 . . . . . . . . . . . . . . Traps Extracted 3 | . . . . . . . 3 . . . . . . . . . . . . . . . . . . . . . . . . . . . Installed . | . . . . . . . . . . . . . . . . . . . . . . . . . . . . . . . . . . . Triggered 1 | . . . . . . . . . . . . . . . . . . . . 1 . . . . . . . . . . . . . . Most Traps Carried 1 | . . . . . . . 1 . . . . . . . . . . . . . . . . . . . . . . . . . . . Machines | -11 -10 -10 -9 -9 -9 -8 -8 -8 -8 -7 -7 -6 -6 -6 -6 -6 -6 -5 -5 -5 -5 -4 -4 -4 -4 -4 -4 -3 -3 -2 -2 -1 -1 -1 ---------- Run | Yrd Mat Min Mat Sto Gar Mat Gar Mat Gar Fac Gar Fac Was Fac Gar Fac Gar Fac Was Fac Gar Fac Was Fac Gar Fac Gar Res Gar Res Tes Acc Gar Acc Machines Disabled 95 | . 1 1 . 3 1 1 5 . 1 . 5 9 . 1 8 . 6 . . 2 5 3 . 6 8 2 4 1 5 2 5 . 9 1 Max in Single Turn 7 | . 1 1 . 1 1 1 1 . 1 . 1 7 . 1 1 . 1 . . . 1 . . 2 1 . 1 1 1 1 1 . 1 . Garrison Access 2 | . . . . . . . . . . . . . . . . . . . . 1 . . . . . . . . . 1 . . . . Garrison Relay 47 | . . . . . . . 2 . 1 . 5 . . . 7 . 4 . . . 4 . . . 9 . 4 . 5 . . . 6 . Phase Generator 1 | . . . . . 1 . . . . . . . . . . . . . . . . . . . . . . . . . . . . . Machines Repaired . | . . . . . . . . . . . . . . . . . . . . . . . . . . . . . . . . . . . Machines Dismantled 5 | . . . . 2 1 1 . . . . . . . 1 . . . . . . . . . . . . . . . . . . . . Machines Sabotaged . | . . . . . . . . . . . . . . . . . . . . . . . . . . . . . . . . . . . Overloaded Fab Kills . | . . . . . . . . . . . . . . . . . . . . . . . . . . . . . . . . . . . Hacking | -11 -10 -10 -9 -9 -9 -8 -8 -8 -8 -7 -7 -6 -6 -6 -6 -6 -6 -5 -5 -5 -5 -4 -4 -4 -4 -4 -4 -3 -3 -2 -2 -1 -1 -1 --------- Run | Yrd Mat Min Mat Sto Gar Mat Gar Mat Gar Fac Gar Fac Was Fac Gar Fac Gar Fac Was Fac Gar Fac Was Fac Gar Fac Gar Res Gar Res Tes Acc Gar Acc Machines Accessed 131 | . 7 . 8 14 5 14 1 5 2 1 2 . . 2 3 2 2 . . 3 1 3 . 14 2 5 3 6 1 9 9 4 3 . Terminals 98 | . 6 . 7 12 5 11 1 4 2 . 2 . . . 3 1 2 . . 1 1 2 . 9 2 1 3 2 1 7 7 3 3 . Fabricators 6 | . . . . . . . . . . . . . . . . . . . . . . . . 1 . 2 . 2 . 1 . . . . Repair Stations 11 | . 1 . . 1 . 1 . . . . . . . 1 . . . . . 1 . 1 . 1 . 1 . 1 . . 2 . . . Recycling Units . | . . . . . . . . . . . . . . . . . . . . . . . . . . . . . . . . . . . Scanalyzers 4 | . . . 1 . . 1 . . . . . . . . . . . . . . . . . 2 . . . . . . . . . . Garrison Access 12 | . . . . 1 . 1 . 1 . 1 . . . 1 . 1 . . . 1 . . . 1 . 1 . 1 . 1 . 1 . . Total Hacks 334 | . 22 . 30 40 12 53 2 15 9 2 2 . . 5 3 5 4 . . 10 1 5 . 29 3 14 4 13 2 16 18 7 8 . Successful 157 | . 12 . 16 18 4 26 2 8 2 1 1 . . 3 3 3 1 . . 6 1 3 . 11 2 8 3 2 . 8 6 2 5 . Failed 175 | . 10 . 14 21 8 26 . 7 7 1 1 . . 2 . 2 3 . . 4 . 2 . 18 1 6 1 11 2 8 12 5 3 . Catastrophic 33 | . 2 . 6 2 1 3 . . 1 . . . . . . . 1 . . . . . . 5 . 1 . 4 . 3 2 1 1 . Database Lockouts 2 | . . . . 1 . 1 . . . . . . . . . . . . . . . . . . . . . . . . . . . . Manual 124 | . 13 . 15 11 5 17 1 6 5 1 . . . 4 . 2 . . . 4 . 3 . 10 . 5 . 6 . 3 8 . 5 . Terminals 242 | . 17 . 25 35 12 33 2 13 9 . 2 . . . 3 2 4 . . 5 1 4 . 18 3 4 4 3 2 14 13 6 8 . Fabricators 15 | . . . . . . . . . . . . . . . . . . . . . . . . 2 . 6 . 6 . 1 . . . . Repair Stations 24 | . 5 . . 3 . 3 . . . . . . . 1 . . . . . 2 . 1 . 1 . 1 . 2 . . 5 . . . Recycling Units . | . . . . . . . . . . . . . . . . . . . . . . . . . . . . . . . . . . . Scanalyzers 26 | . . . 5 . . 15 . . . . . . . . . . . . . . . . . 6 . . . . . . . . . . Garrison Access 27 | . . . . 2 . 2 . 2 . 2 . . . 4 . 3 . . . 3 . . . 2 . 3 . 2 . 1 . 1 . . Terminal Hacks 83 | . 5 . 7 13 4 11 2 6 2 . 1 . . . 3 1 1 . . 2 1 2 . 2 2 2 3 . . 6 1 1 5 . Part Schematic 5 | . . . 1 2 . 2 . . . . . . . . . . . . . . . . . . . . . . . . . . . . Robot Schematic 2 | . 1 . . . . . . . . . . . . . . 1 . . . . . . . . . . . . . . . . . . Robot Analysis 3 | . 1 . . 1 . . . . . . . . . . . . . . . . . . . . . . . . . 1 . . . . Prototype ID Bank 7 | . 1 . 1 2 . 2 . . . . . . . . . . . . . . . . . . . . . . . . . 1 . . Open Door 6 | . . . . 2 . . . . . . 1 . . . 1 . . . . . . . . . . . 1 . . . . . 1 . Branch Access Points 2 | . . . 1 . . . . . . . . . . . . . . . . . . . . . . . . . . 1 . . . . Emergency Access Points 6 | . . . . . 1 . . 1 1 . . . . . 1 . . . . . . . . . . . 1 . . . . . 1 . Terminal Index 2 | . . . . 1 . . . . . . . . . . . . . . . . . 1 . . . . . . . . . . . . Fabricator Index 1 | . . . . . . . . . . . . . . . . . . . . . . . . . . . . . . 1 . . . . Scanalyzer Index 1 | . . . . . . . . 1 . . . . . . . . . . . . . . . . . . . . . . . . . . Garrison Index 1 | . . . . . . . . . . . . . . . . . . . . 1 . . . . . . . . . . . . . . Alert Level 1 | . . . 1 . . . . . . . . . . . . . . . . . . . . . . . . . . . . . . . Unreport Threat 15 | . . . 1 3 . 3 . 2 . . . . . . . . . . . 1 . 1 . . . . . . . 2 1 . 1 . Locate Traps 6 | . 1 . 1 . . 1 . 1 . . . . . . . . . . . . . . . 1 . . . . . 1 . . . . Dispatch Records 2 | . . . . 1 . 1 . . . . . . . . . . . . . . . . . . . . . . . . . . . . Transport Status 1 | . . . . . . . . . . . . . . . . . . . . . . . . 1 . . . . . . . . . . Hauler Manifests 3 | . . . . 1 . 1 . . . . . . . . . . . . . . . . . . . 1 . . . . . . . . Registered Components 3 | . 1 . . . . 1 . . . . . . . . . . . . . . . . . . . 1 . . . . . . . . Zone Layout 2 | . . . 1 . . . . 1 . . . . . . . . . . . . . . . . . . . . . . . . . . Garrison Registry 6 | . . . . . 1 . 1 . 1 . . . . . . . . . . . . . . . 1 . 1 . . . . . 1 . Patrol Navigation 4 | . . . . . 1 . 1 . . . . . . . . . . . . . 1 . . . 1 . . . . . . . . . Security Stations 4 | . . . . . 1 . . . . . . . . . 1 . 1 . . . . . . . . . . . . . . . 1 . Fabricator Hacks 3 | . . . . . . . . . . . . . . . . . . . . . . . . . . 3 . . . . . . . . Load Schematic 2 | . . . . . . . . . . . . . . . . . . . . . . . . . . 2 . . . . . . . . Build 1 | . . . . . . . . . . . . . . . . . . . . . . . . . . 1 . . . . . . . . Repair Station Hacks 8 | . 2 . . 2 . 2 . . . . . . . . . . . . . . . . . . . . . . . . 2 . . . Scan Component 4 | . 1 . . 1 . 1 . . . . . . . . . . . . . . . . . . . . . . . . 1 . . . Repair 4 | . 1 . . 1 . 1 . . . . . . . . . . . . . . . . . . . . . . . . 1 . . . Recycling Unit Hacks . | . . . . . . . . . . . . . . . . . . . . . . . . . . . . . . . . . . . Scanalyzer 20 | . . . 3 . . 11 . . . . . . . . . . . . . . . . . 6 . . . . . . . . . . Insert Component 7 | . . . 1 . . 3 . . . . . . . . . . . . . . . . . 3 . . . . . . . . . . Analyze 13 | . . . 2 . . 8 . . . . . . . . . . . . . . . . . 3 . . . . . . . . . . Garrison Access Hacks 12 | . . . . 1 . 1 . 1 . 1 . . . 1 . 1 . . . 1 . . . 1 . 1 . 1 . 1 . 1 . . Unlock Access 11 | . . . . 1 . 1 . 1 . 1 . . . 1 . 1 . . . 1 . . . 1 . 1 . 1 . . . 1 . . Seal Access 1 | . . . . . . . . . . . . . . . . . . . . . . . . . . . . . . 1 . . . . Unauthorized Hacks 30 | . 5 . 5 2 . 1 . 1 . . . . . 2 . 1 . . . 3 . 1 . 2 . 2 . 1 . 1 3 . . . Terminals 16 | . 5 . 5 2 . 1 . . . . . . . . . . . . . . . . . 1 . . . . . 1 1 . . . Assimilate 1 | . . . . . . . . . . . . . . . . . . . . . . . . . . . . . . . 1 . . . Botnet 3 | . . . . 2 . . . . . . . . . . . . . . . . . . . . . . . . . 1 . . . . Operators 2 | . . . . . . 1 . . . . . . . . . . . . . . . . . 1 . . . . . . . . . . Skim 10 | . 5 . 5 . . . . . . . . . . . . . . . . . . . . . . . . . . . . . . . Fabricators 1 | . . . . . . . . . . . . . . . . . . . . . . . . . . 1 . . . . . . . . Recompile 1 | . . . . . . . . . . . . . . . . . . . . . . . . . . 1 . . . . . . . . Repair Stations 8 | . . . . . . . . . . . . . . 1 . . . . . 1 . 1 . 1 . 1 . 1 . . 2 . . . Mechanics 8 | . . . . . . . . . . . . . . 1 . . . . . 1 . 1 . 1 . 1 . 1 . . 2 . . . Recycling Units . | . . . . . . . . . . . . . . . . . . . . . . . . . . . . . . . . . . . Scanalyzers . | . . . . . . . . . . . . . . . . . . . . . . . . . . . . . . . . . . . Garrison Access 5 | . . . . . . . . 1 . . . . . 1 . 1 . . . 2 . . . . . . . . . . . . . . Broadcast 1 | . . . . . . . . . . . . . . . . . . . . 1 . . . . . . . . . . . . . . Decoy 1 | . . . . . . . . . . . . . . . . . . . . 1 . . . . . . . . . . . . . . Reprogram 3 | . . . . . . . . 1 . . . . . 1 . 1 . . . . . . . . . . . . . . . . . . Data Cores Recovered 4 | . . . . 1 . . . . . . . . . . . . . . . . . . . . . . . . . . 1 2 . . Used 2 | . . . . . . . . . . . . . . . . . . . . . . . . . . . . . . . . 2 . . Hacking Detections 108 | . 6 . 8 11 5 14 . 4 2 1 1 . . 1 1 2 2 . . 2 . 2 . 12 1 3 1 6 1 8 8 4 2 . Full Trace Events 11 | . 1 . 1 . 3 2 . . . . . . . . . . . . . . . . . 2 . . . . . . . 1 1 . Feedback Events . | . . . . . . . . . . . . . . . . . . . . . . . . . . . . . . . . . . . Feedback Blocked . | . . . . . . . . . . . . . . . . . . . . . . . . . . . . . . . . . . . Robot Schematics Acquired 2 | . 1 . . . . . . . . . . . . . . 1 . . . . . . . . . . . . . . . . . . Robots Built . | . . . . . . . . . . . . . . . . . . . . . . . . . . . . . . . . . . . Authchips . | . . . . . . . . . . . . . . . . . . . . . . . . . . . . . . . . . . . Time . | . . . . . . . . . . . . . . . . . . . . . . . . . . . . . . . . . . . Total Robot Build Rating . | . . . . . . . . . . . . . . . . . . . . . . . . . . . . . . . . . . . Part Schematics Acquired 18 | . . . 1 2 . 4 . . . . . . . . . . . . . . . . . 2 . . . . . . 9 . . . Parts Built 1 | . . . . . . . . . . . . . . . . . . . . . . . . . . 1 . . . . . . . . Authchips 1 | . . . . . . . . . . . . . . . . . . . . . . . . . . 1 . . . . . . . . Time 68 | . . . . . . . . . . . . . . . . . . . . . . . . . . 68 . . . . . . . . Total Part Build Rating 8 | . . . . . . . . . . . . . . . . . . . . . . . . . . 8 . . . . . . . . Parts Repaired 4 | . 1 . . 1 . 1 . . . . . . . . . . . . . . . . . . . . . . . . 1 . . . Time 171 | . 13 . . 51 . 76 . . . . . . . . . . . . . . . . . . . . . . . . 31 . . . Parts Recycled . | . . . . . . . . . . . . . . . . . . . . . . . . . . . . . . . . . . . Recycled Matter . | . . . . . . . . . . . . . . . . . . . . . . . . . . . . . . . . . . . Retrieved Matter . | . . . . . . . . . . . . . . . . . . . . . . . . . . . . . . . . . . . Retrieved Components . | . . . . . . . . . . . . . . . . . . . . . . . . . . . . . . . . . . . Parts Scanalyzed 6 | . . . 1 . . 2 . . . . . . . . . . . . . . . . . 3 . . . . . . . . . . Part Schematics Acquired 4 | . . . . . . 2 . . . . . . . . . . . . . . . . . 2 . . . . . . . . . . Parts Damaged 3 | . . . . . . 1 . . . . . . . . . . . . . . . . . 2 . . . . . . . . . . Bothacking | -11 -10 -10 -9 -9 -9 -8 -8 -8 -8 -7 -7 -6 -6 -6 -6 -6 -6 -5 -5 -5 -5 -4 -4 -4 -4 -4 -4 -3 -3 -2 -2 -1 -1 -1 ------------ Run | Yrd Mat Min Mat Sto Gar Mat Gar Mat Gar Fac Gar Fac Was Fac Gar Fac Gar Fac Was Fac Gar Fac Was Fac Gar Fac Gar Res Gar Res Tes Acc Gar Acc Used RIF Installer 13 | . . . . . 1 . 1 . 1 . 1 . . . 2 . 1 . . . 2 . . . 1 . 1 . 1 . . . 1 . Coupler Efficiency 1 | . . . . . . . . . . . . . . . . . . . . . 1 . . . . . . . . . . . . . Code Merge 2 | . . . . . . . . . . . 1 . . . . . . . . . 1 . . . . . . . . . . . . . Signal Jammer 1 | . . . . . . . . . . . . . . . . . . . . . . . . . . . 1 . . . . . . . Zone Cloak 1 | . . . . . . . . . . . . . . . . . 1 . . . . . . . . . . . . . . . . . Robot Detection 1 | . . . . . . . . . 1 . . . . . . . . . . . . . . . . . . . . . . . . . Patrol Navigation 1 | . . . . . . . . . . . . . . . 1 . . . . . . . . . . . . . . . . . . . Structural Interface 1 | . . . . . . . 1 . . . . . . . . . . . . . . . . . . . . . . . . . . . Program Shield 1 | . . . . . . . . . . . . . . . . . . . . . . . . . . . . . 1 . . . . . Autooverride 1 | . . . . . . . . . . . . . . . . . . . . . . . . . . . . . . . . . 1 . Autoassimilate 1 | . . . . . . . . . . . . . . . 1 . . . . . . . . . . . . . . . . . . . Crosswire 1 | . . . . . . . . . . . . . . . . . . . . . . . . . 1 . . . . . . . . . Robots Hacked 355 | . . . . . . 15 8 2 4 . 7 . 6 2 11 2 12 . 5 5 20 7 6 14 17 19 25 25 30 23 17 2 45 26 Non-combat 57 | . . . . . . 6 . 2 1 . . . . 2 2 2 . . . 1 . 3 . 6 . 6 . 8 . 6 3 . 2 7 Combat 298 | . . . . . . 9 8 . 3 . 7 . 6 . 9 . 12 . 5 4 20 4 6 8 17 13 25 17 30 17 14 2 43 19 Autooverrided 7 | . . . . . . . . . . . . . . . . . . . . . . . . . . . . . . . . . 3 4 Autoassimilated 58 | . . . . . . . . . . . . . . . . . 1 . . . 5 . . 1 3 4 9 6 9 3 3 . 9 5 Robot Hacks Applied 326 | . . . . . . 20 8 2 4 . 8 . 8 2 14 2 12 . 5 5 16 7 6 17 15 16 17 26 21 24 16 2 35 18 parse_system 12 | . . . . . . 1 . . . . . . 2 . 2 . . . . . . 1 . . . 1 . 2 . . 3 . . . no_distress 1 | . . . . . . . . . . . . . . . . . . . . . . . . 1 . . . . . . . . . . drop_inventory 13 | . . . . . . 1 . . . . . . . . . . . . . . . . . 2 . 2 . 4 . 2 . . . 2 locate_stockpiles 1 | . . . . . . . . . . . . . . . . . . . . . . . . . . . . 1 . . . . . . ignore_parts 3 | . . . . . . . . . . . . . . . . . . . . . . . . . . . . 2 . . . . . 1 purge_threat 5 | . . . . . . 1 . . . . . . . . . . . . . . . . . 1 . . . . . 3 . . . . block_reporting 5 | . . . . . . 2 . . . . . . . . . . . . . . . . . 1 . 1 . . . . 1 . . . map_route 6 | . . . . . . . . 1 . . . . . . . . . . . . . 1 . 1 . . . 1 . 1 . . . 1 mark_security 1 | . . . . . . . . . . . . . . . . . . . . . . . . . . . . 1 . . . . . . ignore_targets 17 | . . . . . . . . . . . . . 6 . . . . . 5 . . . 6 . . . . . . . . . . . amplify_resonance 39 | . . . . . . . 2 . . . 2 . . . . . 1 . . . 8 1 . 2 9 . 3 . 3 . 1 . 4 3 disable_weapons 2 | . . . . . . . . . . . . . . . 1 . . . . . . . . . . . . . . . . . 1 . reboot_system 46 | . . . . . . 1 1 . 1 . 1 . . . 1 . 2 . . 3 2 . . 2 3 2 5 4 1 8 4 1 4 . overwrite_iff 49 | . . . . . . 3 2 . 1 . 5 . . . . . 5 . . . 3 1 . 3 3 4 1 2 5 2 . . 4 5 formatsys_low 29 | . . . . . . 6 . 1 1 . . . . 1 . 2 . . . 1 . 1 . 3 . 2 . 4 . 3 1 . 1 2 formatsys_high 97 | . . . . . . 5 3 . 1 . . . . 1 10 . 4 . . 1 3 2 . 1 . 4 8 5 12 5 6 1 21 4 Relay Couplers Released 199 | . . . . . 4 . 8 . 4 . 23 . . . 31 . 15 . . 1 18 . . . 34 . 16 . 21 . . . 24 . Machine Destruction 191 | . . . . . . . 8 . 4 . 19 . . . 31 . 15 . . 1 18 . . . 34 . 16 . 21 . . . 24 . Programmers 8 | . . . . . 4 . . . . . 4 . . . . . . . . . . . . . . . . . . . . . . . Attached 76 | . . . . . . 6 3 1 2 . 3 . . . 12 . 1 1 . . 3 1 . 3 6 . 10 . 7 . 4 . 10 3 Crosswired 44 | . . . . . . . . . . . . . . . . . . . . . . . . . 12 . 9 . 10 . . . 13 . Merged Code Value 1440 | . . . . . . . . . . . 44 . . . 109 . 45 . 6 . 250 . . 53 410 . 203 . 212 . . . 108 . Fabnet Peak Effective % . | . . . . . . . . . . . . . . . . . . . . . . . . . . . . . . . . . . . Robots Rewired 50 | . . . . . . . . . 5 . 2 . . . 15 . 4 . . . 4 . . . 5 . 4 . 2 . . . 9 . Allies Hacked 9 | . . . . . . . . . . . . . . . 1 . . . . . . . . 1 . 1 2 2 2 . . . . . Hacks Repelled . | . . . . . . . . . . . . . . . . . . . . . . . . . . . . . . . . . . . Allies | -11 -10 -10 -9 -9 -9 -8 -8 -8 -8 -7 -7 -6 -6 -6 -6 -6 -6 -5 -5 -5 -5 -4 -4 -4 -4 -4 -4 -3 -3 -2 -2 -1 -1 -1 -------- Run | Yrd Mat Min Mat Sto Gar Mat Gar Mat Gar Fac Gar Fac Was Fac Gar Fac Gar Fac Was Fac Gar Fac Was Fac Gar Fac Gar Res Gar Res Tes Acc Gar Acc Total Allies 323 | . . 4 . . 1 14 5 2 8 . 9 . 18 2 25 2 16 . . 2 17 4 . 6 13 14 24 17 28 13 11 1 47 20 Largest Group 31 | . . 4 3 . 1 10 13 12 17 16 21 18 27 28 28 23 24 23 20 21 24 22 7 13 5 7 17 17 15 18 11 9 31 30 Highest-Rated Group 1875 | . . 71 55 . 20 117 232 218 295 273 508 353 795 774 774 674 874 874 781 821 1061 900 284 533 296 353 932 932 669 1046 697 649 1828 1875 Highest-Rated Ally 219 | . . 31 31 . 20 29 85 85 85 85 95 95 95 46 111 41 119 119 119 119 119 119 49 119 99 80 116 108 64 183 183 183 219 219 Total Orders 287 | . . . . . . 8 22 1 52 . 19 . 6 4 27 1 39 . 5 3 35 2 . 1 . 2 9 5 7 8 3 1 23 4 STAY 95 | . . . . . . 5 7 . 11 . 4 . 5 1 13 . 13 . 2 1 12 . . . . . 5 . 3 . 1 . 12 . ROAM 3 | . . . . . . 1 . . . . . . . . 1 . . . . . . . . . . . . . . . . . . 1 FOLLOW 93 | . . . . . . 2 9 . 10 . 9 . 1 . 10 . 14 . 1 1 18 . . . . . 3 2 2 1 1 . 9 . GUARD 44 | . . . . . . . 1 1 16 . 5 . . 1 1 1 4 . 2 . 1 1 . . . 1 1 . 1 3 . 1 2 1 AID 19 | . . . . . . . . . 3 . 1 . . 2 2 . . . . 1 . 1 . 1 . 1 . 1 . 3 1 . . 2 DROP 6 | . . . . . . . 1 . 4 . . . . . . . . . . . 1 . . . . . . . . . . . . . PICKUP 24 | . . . . . . . 4 . 8 . . . . . . . 8 . . . 2 . . . . . . . 1 1 . . . . COLLECT 3 | . . . . . . . . . . . . . . . . . . . . . 1 . . . . . . 2 . . . . . . Ally Attacks 2017 | . . 19 51 . 3 13 20 26 39 . 39 10 65 16 237 . 148 . 45 43 57 26 38 70 52 46 86 111 104 131 127 53 106 236 Total Damage 67665 | . . 225 533 . 130 207 455 620 611 . 1819 198 1876 200 6337 . 4951 . 2229 1789 2016 752 2105 2354 1637 1268 2529 4054 3124 3453 3498 1677 4865 12153 Kills 358 | . . 3 7 . 2 1 5 6 6 . 16 1 4 1 37 . 27 . 4 10 15 9 2 14 16 7 19 16 22 15 16 9 17 51 Allies Corrupted 18 | . . . . . . 1 . . . . . . . . 1 . . . . 1 1 . . . . 1 . 2 3 1 2 . 3 2 Allies Melted 3 | . . . . . . 1 . . . . . . . . . . 1 . . . . . . . . 1 . . . . . . . . Intel | -11 -10 -10 -9 -9 -9 -8 -8 -8 -8 -7 -7 -6 -6 -6 -6 -6 -6 -5 -5 -5 -5 -4 -4 -4 -4 -4 -4 -3 -3 -2 -2 -1 -1 -1 ------- Run | Yrd Mat Min Mat Sto Gar Mat Gar Mat Gar Fac Gar Fac Was Fac Gar Fac Gar Fac Was Fac Gar Fac Was Fac Gar Fac Gar Res Gar Res Tes Acc Gar Acc Active Infowar (turns) 3839 | 8 267 . . . . . 98 . . . . . . . 3360 . . . . . 2 . . . . . . . . 104 . . . . Optics 3503 | . 143 . . . . . . . . . . . . . 3360 . . . . . . . . . . . . . . . . . . . Sensors 103 | . . . . . . . . . . . . . . . . . . . . . . . . . . . . . . 103 . . . . Seismic 230 | 8 124 . . . . . 98 . . . . . . . . . . . . . . . . . . . . . . . . . . . Triangulation 1 | . . . . . . . . . . . . . . . . . . . . . . . . . . . . . . 1 . . . . Spoofing 2 | . . . . . . . . . . . . . . . . . . . . . 2 . . . . . . . . . . . . . Robot Analysis Total 3 | . 1 . . 1 . . . . . . . . . . . . . . . . . . . . . . . . . 1 . . . . Derelict Logs Recovered 1 | . . 1 . . . . . . . . . . . . . . . . . . . . . . . . . . . . . . . . Drone Launches . | . . . . . . . . . . . . . . . . . . . . . . . . . . . . . . . . . . . Drone Recoveries . | . . . . . . . . . . . . . . . . . . . . . . . . . . . . . . . . . . . Exploration | -11 -10 -10 -9 -9 -9 -8 -8 -8 -8 -7 -7 -6 -6 -6 -6 -6 -6 -5 -5 -5 -5 -4 -4 -4 -4 -4 -4 -3 -3 -2 -2 -1 -1 -1 ------------- Run | Yrd Mat Min Mat Sto Gar Mat Gar Mat Gar Fac Gar Fac Was Fac Gar Fac Gar Fac Was Fac Gar Fac Was Fac Gar Fac Gar Res Gar Res Tes Acc Gar Acc Turns Passed 51924 | 180 1682 1418 1997 2223 2120 5592 3586 398 2391 72 2154 231 1121 505 4448 186 3767 109 1521 918 2539 648 121 1362 927 610 952 791 999 764 875 208 3903 606 Spaces Moved 36019 | 81 905 727 625 767 784 2120 1585 237 1509 48 1503 160 692 167 2868 116 2070 89 804 657 1466 376 88 1766 1767 1209 1424 1211 1546 1482 1648 388 2892 242 Core 77 | 7 . . . . . . . . . . . . 1 . 3 . . . . . . . . . . . . . . . . . . 66 Treads 11713 | 74 905 727 625 767 784 2120 628 . . . . . . . 1275 . 1144 . . . 1145 251 . . . . . . . . . . 1092 176 Legs . | . . . . . . . . . . . . . . . . . . . . . . . . . . . . . . . . . . . Wheels 9728 | . . . . . . . 957 237 1509 48 1503 160 691 167 1025 116 926 89 804 657 321 125 88 305 . . . . . . . . . . Hover . | . . . . . . . . . . . . . . . . . . . . . . . . . . . . . . . . . . . Flight 14501 | . . . . . . . . . . . . . . . 565 . . . . . . . . 1461 1767 1209 1424 1211 1546 1482 1648 388 1800 . Fastest Speed 24 | 50 160 160 160 240 240 235 150 135 120 120 120 120 120 120 27 122 120 120 120 120 120 123 126 32 32 32 24 24 42 26 26 28 28 50 Average Speed 113 | 150 160 160 219 240 240 239 197 135 129 120 120 120 123 120 126 122 147 120 120 120 151 148 126 53 32 32 26 34 42 29 30 28 108 191 Slowest Speed 2300 | 160 240 160 240 240 240 240 480 150 135 120 135 120 2300 120 200 122 170 120 120 120 160 160 126 251 32 32 32 122 42 245 105 28 243 243 Overloaded Moves . | . . . . . . . . . . . . . . . . . . . . . . . . . . . . . . . . . . . Propulsion Burnouts . | . . . . . . . . . . . . . . . . . . . . . . . . . . . . . . . . . . . Robots Hopped 130 | . . . . . . . . . . . . . . . 1 . . . . . . . . 13 . 12 38 19 . 8 39 . . . Potential Cave-ins 2 | . . . . . . . . . . . . . . . 2 . . . . . . . . . . . . . . . . . . . Cave-ins Triggered . | . . . . . . . . . . . . . . . . . . . . . . . . . . . . . . . . . . . Exploration Rate (%) 56 | 3 97 96 51 91 75 85 85 25 64 1 98 7 97 3 99 5 98 3 100 11 93 13 84 45 88 34 96 18 95 27 93 8 88 9 Regions Visited 34 Branch Regions 3 Pre-discovered Areas 3 | . . . 3 . . . . . . . . . . . . . . . . . . . . . . . . . . . . . . . Known Exits Taken 15 | . 1 1 1 1 . 1 . 1 . 1 . . . 1 . 1 . . . 1 . . . 1 . 1 . 1 . 1 . 1 . . Unknown Exits Taken 2 | 1 . . . . . . . . . . . . . . . . . . . . . . . . . . . . . . 1 . . . Scrap Searched 1 | . . 1 . . . . . . . . . . . . . . . . . . . . . . . . . . . . . . . . Spaces Dug 95 | . . . . . . 8 1 1 . . . . . . 13 . . . 2 2 18 . . 4 . 3 . 1 . 1 . . 41 . Terrain Destroyed 232 | . . . . . . 8 1 1 . . . 3 4 . 25 1 4 . 13 11 28 6 . 38 5 7 3 1 2 1 . 16 53 1 Melee 64 | . . . . . . 8 1 1 . . . . . . 4 . . . . . . . . 4 . 3 . 1 . 1 . . 41 . Projectile 140 | . . . . . . . . . . . . 2 4 . 21 1 4 . 13 11 28 6 . 31 5 4 3 . 2 . . . 4 1 AOE 4 | . . . . . . . . . . . . 1 . . . . . . . . . . . 3 . . . . . . . . . . Terrain Rammed . | . . . . . . . . . . . . . . . . . . . . . . . . . . . . . . . . . . . Walls Destroyed . | . . . . . . . . . . . . . . . . . . . . . . . . . . . . . . . . . . . Machines Disabled . | . . . . . . . . . . . . . . . . . . . . . . . . . . . . . . . . . . . Actions | -11 -10 -10 -9 -9 -9 -8 -8 -8 -8 -7 -7 -6 -6 -6 -6 -6 -6 -5 -5 -5 -5 -4 -4 -4 -4 -4 -4 -3 -3 -2 -2 -1 -1 -1 --------- Run | Yrd Mat Min Mat Sto Gar Mat Gar Mat Gar Fac Gar Fac Was Fac Gar Fac Gar Fac Was Fac Gar Fac Was Fac Gar Fac Gar Res Gar Res Tes Acc Gar Acc Total 44175 | 111 1028 927 1159 990 890 2456 1905 298 1823 62 1715 174 911 457 3442 158 2624 92 1311 764 1711 438 97 2091 1990 1358 1885 1522 1846 1730 1890 458 3512 350 Wait 4439 | . 22 163 411 75 6 154 125 32 135 13 63 1 165 271 211 39 336 . 471 46 115 21 . 178 62 77 296 142 140 156 165 44 279 25 Move 35775 | 80 904 726 624 767 783 2120 1584 236 1508 47 1502 160 691 166 2865 115 2069 89 803 656 1465 376 87 1739 1766 1184 1373 1177 1545 1466 1583 387 2890 242 Hop 83 | . . . . . . . . . . . . . . . 1 . . . . . . . . 13 . 12 11 14 . 7 25 . . . Pick Up 323 | 9 16 2 23 12 9 20 14 7 13 . 10 1 4 3 50 . 29 1 2 3 9 5 . 11 2 4 10 2 . . 2 1 47 2 Fast Attach 186 | 7 8 . 3 2 . 1 14 1 . 1 2 1 2 . 23 . 4 . . 3 2 1 1 4 8 4 16 15 13 13 15 4 17 1 Attach 116 | . . 1 2 2 3 3 7 1 2 1 5 1 3 . 21 . 9 2 . 1 4 7 . 11 2 3 4 3 . . 4 1 8 5 Detach 27 | . . . . . . . 1 . . . . . 1 . 5 . 6 . . . . 2 . 1 1 . 1 1 . . 3 . 4 1 Swap 352 | . 10 2 13 22 13 36 40 4 22 . 20 1 6 3 23 . 6 . 4 11 9 3 1 23 13 11 6 17 2 4 3 . 20 4 Drop 398 | 1 13 2 23 21 9 21 20 8 11 . 15 . 7 3 38 . 33 . 2 4 10 2 1 25 6 5 15 20 7 10 16 3 39 8 Fire 1506 | 13 55 26 54 58 46 85 50 8 45 . 50 9 23 5 130 4 60 . 29 19 81 21 7 55 77 48 62 62 69 42 28 18 112 55 Melee 429 | . . . . 1 6 9 20 1 2 . 6 . 9 . 39 . 51 . . . . . . 15 35 10 25 10 14 32 43 . 94 7 Ram 5 | . . . . . . . . . . . . . . . . . . . . 3 . . . 2 . . . . . . . . . . Kick . | . . . . . . . . . . . . . . . . . . . . . . . . . . . . . . . . . . . Crush 18 | 1 . 5 6 5 . 1 . . . . . . . . . . . . . . . . . . . . . . . . . . . . Escape Stasis 335 | . . . . 2 4 . 18 . 32 . 24 . . . 36 . 16 . . . 16 . . 14 18 . 63 36 54 . . . 2 . Rewire 80 | . . . . . . . . . 51 . 18 . . . . . 5 . . . . . . . . . . 1 2 . 3 . . . Trap 63 | . . . . 6 . . 12 . 2 . . . . . . . . . . 18 . . . . . . 3 22 . . . . . . Miscellaneous 40 | . . . . 17 11 6 . . . . . . . 6 . . . . . . . . . . . . . . . . . . . . Route ------- -11/Scrapyard -10/Materials (discovered 5 exits: *Mat x3 / *Min / *Sub) -10/Mines (discovered 3 exits: *Mat x2 / [*Exi]) -9/Materials (discovered 5 exits: Mat x3 / *Min / *Sto) -9/Storage (discovered 2 exits: *Mat / Gar) -9/Garrison (discovered 3 exits: *Mat x3) -8/Materials (discovered 3 exits: *Fac x2 / Gar) -8/Garrison (discovered 3 exits: *Mat x3) -8/Materials -8/Garrison (discovered 3 exits: *Fac x3) -7/Factory -7/Garrison (discovered 3 exits: [*Fac x3]) -6/Factory -6/Waste -6/Factory -6/Garrison (discovered 3 exits: *Fac x3) -6/Factory (discovered 2 exits: [*Low] / Gar) -6/Garrison (discovered 3 exits: [*Fac x3]) -5/Factory -5/Waste -5/Factory (discovered 2 exits: *Fac / Gar) -5/Garrison (discovered 3 exits: *Fac x3) -4/Factory (discovered 2 exits: *Res x2) -4/Waste -4/Factory (discovered 5 exits: *Res x2 / [*Upp x2] / Gar) -4/Garrison (discovered 3 exits: *Fac x3) -4/Factory (discovered 2 exits: *Res / Gar) -4/Garrison (discovered 3 exits: *Res x3) -3/Research -3/Garrison (discovered 3 exits: *Res x3) -2/Research (discovered 2 exits: *Tes x2) -2/Testing -1/Access -1/Garrison (discovered 3 exits: [*Acc x3]) -1/Access History --------- Turn | Location | Event 8 | -11/Scrapyard | Discovered new exit (range 14) 181 | -11/Scrapyard | Entered Materials 326 | -10/Materials | Build established: Mutant 482 | -10/Materials | Discovered new exit (range 16) 602 | -10/Materials | Discovered new exit (range 16) 919 | -10/Materials | Repaired Lgt. Treads 1293 | -10/Materials | Discovered new exit (range 10) 1375 | -10/Materials | Discovered new exit (range 9) 1388 | -10/Materials | Identified exit to Subcaves 1428 | -10/Materials | Learned location of 2 exits from Materials 1460 | -10/Materials | Learned 4 Recycling zone layouts 1482 | -10/Materials | Learned location of 2 exits from Materials 1495 | -10/Materials | Learned Storage trap positions 1519 | -10/Materials | Identified exit to Mines 1519 | -10/Materials | Identified exit to Materials 1555 | -10/Materials | Learned Storage emergency access door positions 1863 | -10/Materials | Entered Mines 1940 | -10/Mines | Assisted by bots powering up and referring to "LRC-V3" 2078 | -10/Mines | Found a hidden stash of uninstalled traps 2166 | -10/Mines | Excavation squad dispatched 2166 | -10/Mines | A large section of the Mines collapsed 2187 | -10/Mines | Found a damaged Exp. Sensor Array with a note attached 2192 | -10/Mines | Found Prototype Device 2250 | -10/Mines | Discovered exit to Materials (range 15) 2779 | -10/Mines | Met a Derelict testing a Signal Generator 2799 | -10/Mines | Deemed a non-threat by the Exiles lab entrance 2801 | -10/Mines | Discovered new exit (range 5) 3281 | -10/Mines | Entered Materials 3281 | -9/Materials | Accompanied by 3 allies 3281 | -9/Materials | Evolved 2 slots: Propulsion x1, Weapon x1 3282 | -9/Materials | Identified exit to Materials 3282 | -9/Materials | Identified exit to Storage 3282 | -9/Materials | Identified exit to Mines 3698 | -9/Materials | Build established: Scavenger-Gunner 3953 | -9/Materials | Identified Exp. Sensor Array 4138 | -9/Materials | Build established: Scavenger-Tank 5002 | -9/Materials | Learned location of Mines (-9) 5194 | -9/Materials | Learned Storage emergency access door positions 5261 | -9/Materials | Loaded intel: 47 non-interactive machine locations 5278 | -9/Materials | Entered Storage 5279 | -9/Storage | Loaded intel: 15 trap records 5603 | -9/Storage | Central database locked down 6196 | -9/Storage | Garrison activated, responded to threat 6306 | -9/Storage | Build established: Gunner 6671 | -9/Storage | Discovered exit to Materials (range 16) 7201 | -9/Storage | Repaired Imp. Assault Rifle 7455 | -9/Storage | Found Prototype Processor 7499 | -9/Storage | Identified exit to Garrison 7501 | -9/Storage | Entered Garrison 7525 | -9/Garrison | Triggered checkpoint 7635 | -9/Garrison | Triggered checkpoint 7765 | -9/Garrison | Triggered checkpoint 7775 | -9/Garrison | Triggered checkpoint 7901 | -9/Garrison | Discovered exit to Materials (range 12) 8169 | -9/Garrison | Installed Relay Interface Framework 8292 | -9/Garrison | Core integrity fell below 50% 8626 | -9/Garrison | Learned Materials security intel 8726 | -9/Garrison | Phase Generator disabled 8726 | -9/Garrison | Discovered exit to Materials (range 11) 8876 | -9/Garrison | Build established: Bothacker-Gunner 8946 | -9/Garrison | Triggered checkpoint 9111 | -9/Garrison | Triggered checkpoint 9171 | -9/Garrison | Triggered checkpoint 9244 | -9/Garrison | Rescued a captive Derelict 9280 | -9/Garrison | Discovered exit to Materials (range 57) 9280 | -9/Garrison | Discovered exit to Materials (range 12) 9280 | -9/Garrison | Discovered exit to Materials (range 56) 9621 | -9/Garrison | Entered Materials 9621 | -8/Materials | Accompanied by 1 ally 9621 | -8/Materials | Evolved 2 slots: Utility x1, Weapon x1 9717 | -8/Materials | Identified Exp. Targeting Computer 10662 | -8/Materials | Discovered new exit (range 13) 11487 | -8/Materials | Repaired Broken Imp. VTOL Module 11640 | -8/Materials | Discovered new exit (range 11) 14249 | -8/Materials | Build established: Commander-Tank 14571 | -8/Materials | Build established: Commander-Gunner 14866 | -8/Materials | Central database locked down 15197 | -8/Materials | Identified exit to Garrison 15213 | -8/Materials | Entered Garrison 15213 | -8/Garrison | Accompanied by 10 allies 15847 | -8/Garrison | Triggered checkpoint 15919 | -8/Garrison | Garrison Relay disabled 16024 | -8/Garrison | Triggered checkpoint 16086 | -8/Garrison | Build established: Commander-Tank 16086 | -8/Garrison | Triggered checkpoint 16193 | -8/Garrison | Discovered new exit (range 14) 16271 | -8/Garrison | Triggered checkpoint 16329 | -8/Garrison | Garrison Relay disabled 16510 | -8/Garrison | Discovered new exit (range 22) 16510 | -8/Garrison | Discovered new exit (range 83) 16510 | -8/Garrison | Discovered new exit (range 77) 16749 | -8/Garrison | Triggered checkpoint 16804 | -8/Garrison | Spotted B-75 Beast 16811 | -8/Garrison | Assimilated Beast 3a with formatsys_high 17025 | -8/Garrison | Triggered checkpoint 17511 | -8/Garrison | Triggered checkpoint 17654 | -8/Garrison | Expanded RIF knowledge: Structural Interface 18799 | -8/Garrison | Entered Materials 18799 | -8/Materials | Accompanied by 11 allies 19139 | -8/Materials | Identified exit to Garrison 19188 | -8/Materials | Garrison activated, responded to threat 19197 | -8/Materials | Entered Garrison 19197 | -8/Garrison | Accompanied by 12 allies 19199 | -8/Garrison | Triggered checkpoint 19241 | -8/Garrison | Discovered new exit (range 56) 19241 | -8/Garrison | Discovered new exit (range 92) 19241 | -8/Garrison | Discovered new exit (range 53) 19247 | -8/Garrison | Garrison Relay disabled 19415 | -8/Garrison | Triggered checkpoint 19464 | -8/Garrison | Triggered checkpoint 19601 | -8/Garrison | Triggered checkpoint 19664 | -8/Garrison | Expanded RIF knowledge: Robot Detection 19935 | -8/Garrison | Build established: Commander-Gunner 20493 | -8/Garrison | Triggered checkpoint 20585 | -8/Garrison | Triggered checkpoint 20683 | -8/Garrison | Triggered checkpoint 20783 | -8/Garrison | Build established: Commander-Tank 20979 | -8/Garrison | Triggered checkpoint 21588 | -8/Garrison | Entered Factory 21588 | -7/Factory | Accompanied by 16 allies 21588 | -7/Factory | Evolved 2 slots: Propulsion x1, Utility x1 21604 | -7/Factory | Identified exit to Garrison 21660 | -7/Factory | Entered Garrison 21660 | -7/Garrison | Accompanied by 16 allies 21898 | -7/Garrison | Triggered checkpoint 21972 | -7/Garrison | Triggered checkpoint 22058 | -7/Garrison | Triggered checkpoint 22153 | -7/Garrison | Discovered new exit (range 14) 22224 | -7/Garrison | Triggered checkpoint 22241 | -7/Garrison | Build established: Commander-Gunner 22368 | -7/Garrison | Found embedded Infiltrators 22417 | -7/Garrison | Garrison Relay disabled 22568 | -7/Garrison | Triggered checkpoint 22594 | -7/Garrison | Triggered checkpoint 22617 | -7/Garrison | Expanded RIF knowledge: Code Merge 22740 | -7/Garrison | Triggered checkpoint 22796 | -7/Garrison | Triggered checkpoint 22880 | -7/Garrison | Discovered new exit (range 13) 23006 | -7/Garrison | Triggered checkpoint 23059 | -7/Garrison | Discovered new exit (range 3) 23152 | -7/Garrison | Garrison Relay disabled 23554 | -7/Garrison | Garrison Relay disabled 23593 | -7/Garrison | Garrison Relay disabled 23814 | -7/Garrison | Entered Factory 23814 | -6/Factory | Accompanied by 18 allies 23814 | -6/Factory | Evolved 2 slots: Utility x2 24045 | -6/Factory | Sucked down chute 24045 | -6/Factory | Entered Waste 24065 | -6/Waste | Spotted C-40 Crusher 24105 | -6/Waste | 1 allies followed down the chute 24116 | -6/Waste | Spotted C-40 Crusher 24125 | -6/Waste | Spotted C-40 Crusher 24131 | -6/Waste | Spotted C-40 Crusher 24135 | -6/Waste | Allies destroyed C-40 Crusher 24140 | -6/Waste | Spotted C-40 Crusher 24160 | -6/Waste | Destroyed C-40 Crusher 24163 | -6/Waste | Destroyed C-40 Crusher 24199 | -6/Waste | Spotted C-40 Crusher 24207 | -6/Waste | Destroyed C-40 Crusher 24239 | -6/Waste | Destroyed C-40 Crusher 24270 | -6/Waste | 14 allies followed down the chute 24293 | -6/Waste | Allies destroyed C-40 Crusher 24320 | -6/Waste | Lost 4 allies 24406 | -6/Waste | Discovered new exit (range 13) 24498 | -6/Waste | Warlord forces began an assault 25166 | -6/Waste | Entered Factory 25166 | -6/Factory | Accompanied by 26 allies 25189 | -6/Factory | Identified exit to Garrison 25671 | -6/Factory | Entered Garrison 25671 | -6/Garrison | Accompanied by 28 allies 25717 | -6/Garrison | Lost 5 allies 25796 | -6/Garrison | Spotted B-75 Beast 25811 | -6/Garrison | Allies destroyed B-75 Beast 25838 | -6/Garrison | Lost 4 allies 25909 | -6/Garrison | Triggered checkpoint 25924 | -6/Garrison | Spotted B-75 Beast 25937 | -6/Garrison | Allies destroyed B-75 Beast 25943 | -6/Garrison | Triggered checkpoint 25976 | -6/Garrison | Lost 5 allies 26068 | -6/Garrison | Lost 9 parts (3n2u4w) 26101 | -6/Garrison | Core integrity fell below 50% 26117 | -6/Garrison | Lost 10 allies 26122 | -6/Garrison | Garrison Relay disabled 26125 | -6/Garrison | Triggered checkpoint 26332 | -6/Garrison | Found Prototype Device 26332 | -6/Garrison | Identified Exp. Thermal Shield 26625 | -6/Garrison | Triggered checkpoint 26744 | -6/Garrison | Triggered checkpoint 26910 | -6/Garrison | Garrison Relay disabled 26955 | -6/Garrison | Discovered new exit (range 19) 26990 | -6/Garrison | Garrison Relay disabled 27182 | -6/Garrison | Expanded RIF knowledge: Patrol Navigation 27231 | -6/Garrison | Build established: Botlord-Tank 27243 | -6/Garrison | Discovered new exit (range 13) 27246 | -6/Garrison | Triggered checkpoint 27319 | -6/Garrison | Triggered checkpoint 27376 | -6/Garrison | Garrison Relay disabled 27454 | -6/Garrison | Learned Factory security intel 27517 | -6/Garrison | Triggered checkpoint 27722 | -6/Garrison | Garrison Relay disabled 27859 | -6/Garrison | Spotted B-75 Beast 27859 | -6/Garrison | Spotted B-75 Beast 27907 | -6/Garrison | Triggered checkpoint 27911 | -6/Garrison | P-70 Sage assimilated allied 25-M70(h) 27955 | -6/Garrison | Build established: Commander-Tank 27974 | -6/Garrison | Allies destroyed B-75 Beast 27987 | -6/Garrison | Allies destroyed B-75 Beast 28091 | -6/Garrison | Triggered checkpoint 28100 | -6/Garrison | Discovered new exit (range 15) 28510 | -6/Garrison | Expanded RIF knowledge: Autoassimilate 28520 | -6/Garrison | Core integrity fell below 20% 28553 | -6/Garrison | Garrison Relay disabled 28572 | -6/Garrison | Garrison Relay disabled 29160 | -6/Garrison | Build established: Commander-Gunner 30119 | -6/Garrison | Entered Factory 30119 | -6/Factory | Accompanied by 21 allies 30184 | -6/Factory | Discovered new exit (range 16) 30237 | -6/Factory | Identified exit to Garrison 30305 | -6/Factory | Entered Garrison 30305 | -6/Garrison | Accompanied by 23 allies 30531 | -6/Garrison | Triggered checkpoint 30542 | -6/Garrison | Spotted B-75 Beast 30552 | -6/Garrison | Destroyed B-75 Beast 30559 | -6/Garrison | Triggered checkpoint 30685 | -6/Garrison | Triggered checkpoint 30715 | -6/Garrison | Garrison Relay disabled 30803 | -6/Garrison | Build established: Commander-Tank 30842 | -6/Garrison | Expanded RIF knowledge: Zone Cloak 30938 | -6/Garrison | Discovered new exit (range 15) 31209 | -6/Garrison | Triggered checkpoint 31307 | -6/Garrison | Triggered checkpoint 31353 | -6/Garrison | Discovered new exit (range 15) 31449 | -6/Garrison | Spotted Executioner 31526 | -6/Garrison | Triggered checkpoint 31678 | -6/Garrison | Lost 3 allies 31691 | -6/Garrison | Spotted B-75 Beast 31705 | -6/Garrison | Allies destroyed B-75 Beast 31709 | -6/Garrison | Discovered new exit (range 12) 31734 | -6/Garrison | Lost 3 allies 31758 | -6/Garrison | Triggered checkpoint 31812 | -6/Garrison | Found embedded Infiltrators 31903 | -6/Garrison | Learned Factory security intel 31952 | -6/Garrison | Garrison Relay disabled 32091 | -6/Garrison | Triggered checkpoint 32142 | -6/Garrison | Garrison Relay disabled 32865 | -6/Garrison | Build established: Commander-Mutant 33015 | -6/Garrison | Rewired Executioner 33022 | -6/Garrison | Allies destroyed Executioner 33081 | -6/Garrison | Garrison Relay disabled 33110 | -6/Garrison | Found Prototype Processor 33110 | -6/Garrison | Identified Exp. Core Analyzer 33119 | -6/Garrison | Found Exp. Core Analyzer 33313 | -6/Garrison | Build established: Commander-Gunner 34072 | -6/Garrison | Entered Factory 34072 | -5/Factory | Accompanied by 23 allies 34072 | -5/Factory | Evolved 2 slots: Utility x2 34181 | -5/Factory | Sucked down chute 34181 | -5/Factory | Entered Waste 34235 | -5/Waste | Spotted C-40 Crusher 34242 | -5/Waste | Spotted C-40 Crusher 34246 | -5/Waste | Allies destroyed C-40 Crusher 34253 | -5/Waste | Destroyed C-40 Crusher 34291 | -5/Waste | Spotted C-40 Crusher 34302 | -5/Waste | Spotted C-40 Crusher 34313 | -5/Waste | Spotted C-40 Crusher 34313 | -5/Waste | Destroyed C-40 Crusher 34321 | -5/Waste | Allies destroyed C-40 Crusher 34338 | -5/Waste | Spotted C-40 Crusher 34356 | -5/Waste | Allies destroyed C-40 Crusher 34378 | -5/Waste | Allies destroyed C-40 Crusher 34421 | -5/Waste | 3 allies followed down the chute 34471 | -5/Waste | Build established: Botlord-Gunner 34506 | -5/Waste | Discovered new exit (range 15) 34656 | -5/Waste | 33 allies followed down the chute 34889 | -5/Waste | Build established: Commander-Gunner 35540 | -5/Waste | Found Fusion Bomb Launcher 35702 | -5/Waste | Entered Factory 35702 | -5/Factory | Accompanied by 20 allies 36066 | -5/Factory | Discovered new exit (range 15) 36407 | -5/Factory | Lost 4 allies 36537 | -5/Factory | Cargo convoy interrupted 36554 | -5/Factory | Identified exit to Garrison 36620 | -5/Factory | Entered Garrison 36620 | -5/Garrison | Accompanied by 15 allies 36638 | -5/Garrison | Expanded RIF knowledge: Code Merge 36700 | -5/Garrison | Triggered checkpoint 36982 | -5/Garrison | Garrison Relay disabled 37047 | -5/Garrison | Triggered checkpoint 37099 | -5/Garrison | Triggered checkpoint 37265 | -5/Garrison | Expanded RIF knowledge: Coupler Efficiency 37300 | -5/Garrison | Triggered checkpoint 37346 | -5/Garrison | Garrison Relay disabled 37394 | -5/Garrison | Discovered new exit (range 15) 37501 | -5/Garrison | Triggered checkpoint 37503 | -5/Garrison | Triggered checkpoint 37564 | -5/Garrison | Garrison Relay disabled 37598 | -5/Garrison | Found embedded Infiltrators 37655 | -5/Garrison | Discovered new exit (range 9) 37740 | -5/Garrison | Lost 3 allies 37902 | -5/Garrison | Garrison Relay disabled 37913 | -5/Garrison | Triggered checkpoint 37918 | -5/Garrison | Spotted Striker 37946 | -5/Garrison | Allies destroyed Striker 37960 | -5/Garrison | Spotted Striker 37960 | -5/Garrison | Allies destroyed Striker 37985 | -5/Garrison | Lost 4 allies 38033 | -5/Garrison | Discovered new exit (range 9) 38244 | -5/Garrison | Build established: Botlord-Tank 39159 | -5/Garrison | Entered Factory 39159 | -4/Factory | Accompanied by 18 allies 39159 | -4/Factory | Evolved 2 slots: Utility x2 39392 | -4/Factory | Discovered new exit (range 123) 39514 | -4/Factory | Discovered new exit (range 15) 39779 | -4/Factory | Lost 3 parts (1n2w) 39807 | -4/Factory | Sucked down chute 39807 | -4/Factory | Entered Waste 39819 | -4/Waste | Spotted C-40 Crusher 39822 | -4/Waste | EMP discharged 39822 | -4/Waste | System corruption reached 10% 39840 | -4/Waste | Spotted C-40 Crusher 39847 | -4/Waste | Spotted C-40 Crusher 39847 | -4/Waste | Spotted C-40 Crusher 39872 | -4/Waste | Spotted C-40 Crusher 39877 | -4/Waste | Spotted C-40 Crusher 39907 | -4/Waste | Discovered new exit (range 16) 39922 | -4/Waste | EMP discharged 39928 | -4/Waste | Entered Factory 39928 | -4/Factory | Accompanied by 2 allies 40100 | -4/Factory | Build established: Botlord-Gunner 40148 | -4/Factory | 54 allies followed down the chute 40172 | -4/Factory | Lost 5 allies 40346 | -4/Factory | Discovered new exit (range 13) 40378 | -4/Factory | Discovered new exit (range 3) 40463 | -4/Factory | P-70 Sage assimilated allied Conveyor 7b 40549 | -4/Factory | Lost 7 allies 40821 | -4/Factory | Discovered new exit (range 8) 40901 | -4/Factory | Build established: Botlord-Sprinter 40912 | -4/Factory | P-70 Sage assimilated allied Assassin 7a 41009 | -4/Factory | Discovered new exit (range 5) 41158 | -4/Factory | Identified exit to Garrison 41189 | -4/Factory | Spotted B-86 Titan 41290 | -4/Factory | Entered Garrison 41298 | -4/Garrison | Triggered checkpoint 41333 | -4/Garrison | Triggered checkpoint 41343 | -4/Garrison | Garrison Relay disabled 41354 | -4/Garrison | System corruption reached 30% 41488 | -4/Garrison | Triggered checkpoint 41488 | -4/Garrison | Triggered checkpoint 41564 | -4/Garrison | Lost 5 allies 41614 | -4/Garrison | Lost 6 parts (1p2u3w) 41670 | -4/Garrison | Garrison Relay disabled 41713 | -4/Garrison | Discovered new exit (range 50) 41713 | -4/Garrison | Discovered new exit (range 56) 41713 | -4/Garrison | Discovered new exit (range 19) 41731 | -4/Garrison | Expanded RIF knowledge: Crosswire 41745 | -4/Garrison | Rewired Striker 41752 | -4/Garrison | Rewired Striker 41764 | -4/Garrison | Garrison Relay disabled 41804 | -4/Garrison | Triggered checkpoint 41830 | -4/Garrison | Triggered checkpoint 41834 | -4/Garrison | Garrison Relay disabled 41860 | -4/Garrison | Garrison Relay disabled 41866 | -4/Garrison | Garrison Relay disabled 41870 | -4/Garrison | Garrison Relay disabled 41877 | -4/Garrison | Garrison Relay disabled 41989 | -4/Garrison | Triggered checkpoint 42012 | -4/Garrison | Garrison Relay disabled 42052 | -4/Garrison | Triggered checkpoint 42142 | -4/Garrison | Found embedded Infiltrators 42217 | -4/Garrison | Entered Factory 42217 | -4/Factory | Accompanied by 4 allies 42467 | -4/Factory | Lost 3 allies 42470 | -4/Factory | P-70 Sage assimilated allied Administrator 7b 42493 | -4/Factory | Discovered new exit (range 15) 42612 | -4/Factory | Fabricated Cld. Impulse Thruster (x1) 42637 | -4/Factory | P-70 Sage assimilated allied 4Z-2OI(x) 42642 | -4/Factory | Core integrity fell below 50% 42666 | -4/Factory | Identified exit to Garrison 42827 | -4/Factory | Entered Garrison 42891 | -4/Garrison | Triggered checkpoint 42904 | -4/Garrison | Garrison Relay disabled 42924 | -4/Garrison | Lost 4 parts (2u2w) 42972 | -4/Garrison | Triggered checkpoint 42979 | -4/Garrison | Spotted B-86 Titan 42980 | -4/Garrison | Autoassimilated Titan 7a with RIF 43003 | -4/Garrison | Triggered checkpoint 43021 | -4/Garrison | Triggered checkpoint 43022 | -4/Garrison | Lost 3 allies 43054 | -4/Garrison | Expanded RIF knowledge: Signal Jamming 43162 | -4/Garrison | Triggered checkpoint 43163 | -4/Garrison | Discovered new exit (range 11) 43172 | -4/Garrison | Garrison Relay disabled 43286 | -4/Garrison | Discovered new exit (range 13) 43297 | -4/Garrison | Triggered checkpoint 43361 | -4/Garrison | Garrison Relay disabled 43372 | -4/Garrison | Discovered new exit (range 64) 43372 | -4/Garrison | Discovered new exit (range 68) 43372 | -4/Garrison | Discovered new exit (range 18) 43390 | -4/Garrison | Found embedded Infiltrators 43390 | -4/Garrison | Triggered checkpoint 43416 | -4/Garrison | Garrison Relay disabled 43465 | -4/Garrison | Rewired B-75 Beast 43631 | -4/Garrison | Found Relay Coupler [Proto] 43632 | -4/Garrison | Found Relay Coupler [Proto] 43633 | -4/Garrison | Found Relay Coupler [Proto] 43636 | -4/Garrison | Found Relay Coupler [Proto] 43779 | -4/Garrison | Entered Research 43779 | -3/Research | Accompanied by 14 allies 43779 | -3/Research | Evolved 2 slots: Utility x2 44029 | -3/Research | First assault squad dispatched 44197 | -3/Research | Lost 9 allies 44297 | -3/Research | Lost 6 allies 44305 | -3/Research | P-80 Master assimilated allied Veteran 7q 44399 | -3/Research | Lost 3 allies 44399 | -3/Research | Spotted B-86 Titan 44511 | -3/Research | Identified exit to Garrison 44570 | -3/Research | Entered Garrison 44570 | -3/Garrison | Accompanied by 7 allies 44572 | -3/Garrison | Build established: Botlord-Mutant 44576 | -3/Garrison | Triggered checkpoint 44588 | -3/Garrison | Garrison Relay disabled 44632 | -3/Garrison | Spotted Executioner 44632 | -3/Garrison | Spotted Executioner 44746 | -3/Garrison | Triggered checkpoint 44766 | -3/Garrison | Triggered checkpoint 44788 | -3/Garrison | Lost 4 allies 44796 | -3/Garrison | Triggered checkpoint 44854 | -3/Garrison | Lost 6 allies 44911 | -3/Garrison | Discovered new exit (range 8) 44950 | -3/Garrison | Triggered checkpoint 44963 | -3/Garrison | Garrison Relay disabled 45166 | -3/Garrison | Lost 3 allies 45197 | -3/Garrison | Triggered checkpoint 45212 | -3/Garrison | Garrison Relay disabled 45223 | -3/Garrison | Expanded RIF knowledge: Program Shield 45242 | -3/Garrison | Triggered checkpoint 45263 | -3/Garrison | Discovered new exit (range 13) 45306 | -3/Garrison | Triggered checkpoint 45317 | -3/Garrison | Garrison Relay disabled 45333 | -3/Garrison | Garrison Relay disabled 45353 | -3/Garrison | Discovered new exit (range 8) 45569 | -3/Garrison | Entered Research 45569 | -2/Research | Accompanied by 11 allies 45569 | -2/Research | Evolved 2 slots: Utility x2 45808 | -2/Research | Spotted B-90 Cyclops 45997 | -2/Research | Build established: Botlord-Sprinter 46079 | -2/Research | Identified exit to Testing 46319 | -2/Research | First assault squad dispatched 46333 | -2/Research | Entered Testing 46333 | -2/Testing | Accompanied by 9 allies 46352 | -2/Testing | Found Prototype Ballistic Gun 46352 | -2/Testing | Identified Hyp. Multirail 46397 | -2/Testing | Repaired Force Lance 46542 | -2/Testing | Unstable Terrabomb Derivative detonated 46565 | -2/Testing | Lost 3 allies 46762 | -2/Testing | Found Prototype Energy Cannon 46762 | -2/Testing | Identified Imp. Potential Cannon 46797 | -2/Testing | Found Prototype Hackware 46797 | -2/Testing | Identified System Mapper 46827 | -2/Testing | Found Prototype Launcher 46827 | -2/Testing | Identified Z-bomb Delivery System 46833 | -2/Testing | First assault squad dispatched 46924 | -2/Testing | Lost 3 allies 46942 | -2/Testing | P-80 Master assimilated allied Machinist 9a 46969 | -2/Testing | Found Prototype Ballistic Cannon 46969 | -2/Testing | Identified Perforator 46976 | -2/Testing | Discovered new exit (range 13) 47000 | -2/Testing | Spotted PH-IFJFE3HQ1Y 47009 | -2/Testing | Assimilated PH-IFJFE3HQ1Y with formatsys_high 47208 | -2/Testing | Entered Access 47208 | -1/Access | Accompanied by 9 allies 47208 | -1/Access | Evolved 2 slots: Power x1, Propulsion x1 47328 | -1/Access | Lost 4 allies 47376 | -1/Access | Identified exit to Garrison 47395 | -1/Access | Garrison activated, responded to threat 47416 | -1/Access | Entered Garrison 47416 | -1/Garrison | Accompanied by 3 allies 47423 | -1/Garrison | Triggered checkpoint 47434 | -1/Garrison | Discovered new exit (range 60) 47434 | -1/Garrison | Discovered new exit (range 94) 47434 | -1/Garrison | Discovered new exit (range 65) 47439 | -1/Garrison | Triggered checkpoint 47450 | -1/Garrison | Garrison Relay disabled 47451 | -1/Garrison | Heavy support dispatched to Access 47782 | -1/Garrison | Triggered checkpoint 47793 | -1/Garrison | Garrison Relay disabled 47804 | -1/Garrison | Spotted B-99 Colossus 47804 | -1/Garrison | Triggered checkpoint 47810 | -1/Garrison | Triggered checkpoint 47815 | -1/Garrison | Triggered checkpoint 47817 | -1/Garrison | Triggered checkpoint 47846 | -1/Garrison | Allies destroyed B-99 Colossus 47884 | -1/Garrison | Triggered checkpoint 47898 | -1/Garrison | Garrison Relay disabled 47912 | -1/Garrison | H-XX Assembler disabled 48048 | -1/Garrison | Expanded RIF knowledge: Autooverride 48196 | -1/Garrison | Triggered checkpoint 48209 | -1/Garrison | Garrison Relay disabled 48758 | -1/Garrison | Build established: Botlord-Mutant 48859 | -1/Garrison | Learned Access security intel 49299 | -1/Garrison | Build established: Botlord-Tank 49760 | -1/Garrison | Triggered checkpoint 49790 | -1/Garrison | Garrison Relay disabled 50070 | -1/Garrison | Triggered checkpoint 50123 | -1/Garrison | Lost 4 allies 50195 | -1/Garrison | Garrison Relay disabled 50485 | -1/Garrison | Build established: Botlord-Mutant 51280 | -1/Garrison | Build established: Botlord-Tank 51319 | -1/Garrison | Entered Access 51319 | -1/Access | Accompanied by 30 allies 51491 | -1/Access | High security lockdown imminent 51571 | -1/Access | High security lockdown engaged 51577 | -1/Access | Spotted B-99 Colossus 51578 | -1/Access | Autoassimilated Colossus 10a with RIF 51633 | -1/Access | Lost 5 allies 51823 | -1/Access | Lost 30 allies 51823 | -1/Access | Spotted Striker 51827 | -1/Access | Spotted Striker 51841 | -1/Access | Allies destroyed Striker 51842 | -1/Access | P-80 Master assimilated allied Archangel 10b 51848 | -1/Access | System corruption reached 10% 51877 | -1/Access | Lost 6 allies 51885 | -1/Access | Spotted B-99 Colossus 51886 | -1/Access | Autoassimilated Colossus 10b with RIF 51886 | -1/Access | Spotted B-99 Colossus 51907 | -1/Access | Core integrity fell below 50% 51919 | -1/Access | Core integrity fell below 20% 51925 | -1/Access | Destroyed by H-88 Terminator with KE Penetrator Last Messages --------------- 51907_ Penetrated by Slug. 51910_ Slug penetrates Sealed Heavy Doors. 51912_ Imp. Heavy Treads destroyed. 51914_ Slug penetrates Sealed Heavy Doors. 51915_ Relay Coupler [Heavy] destroyed. 51916_ Relay Coupler [C] destroyed. 51917_ Slug penetrates Sealed Heavy Doors. 51918_ Slug penetrates Wall. 51921_ B-99 Colossus exits siege mode. 51921_ Slug penetrates Wall. 51921_ Slug penetrates Sealed Heavy Doors. 51922_ Penetrated by Slug. 51922_ Slug penetrates P-80 Master. 51922_ P-80 Master suffers critical hit (Destroy). 51922_ Relay Coupler [Behemoth] destroyed. 51924_ System corrupted: Matter fused (-7). 51924_ Slug penetrates Wall. 51924_ P-80 Master resets P-80 Master, system corruption cleaned. 51924_ Slug penetrates Sealed Heavy Doors. 51925_ Penetrated by Slug. Map ----- +----------------------------------------------------+ | ?####### ?????????????????????????? | | ?# ?????????????????????????? | | ?# ## ?????????????????????????? | | ## ## #########????????????????????????? | | ? #### ###????????????????????????????????? | | ##+##+##?# #??????????????????????????????????? | | ? #?# ###########????????????????????????? | | ???????#?# # ?????????????????????????? | | ?????????# # ?????????????????????????? | | ?????????# # ?????????????????????????? | | ########## # ?????????????????????????? | | ? # """???????????????????????????? | | ? #! ""????????????????????????????? | | ? # ""????????????????????????????? | | ? + ""????????????????????????????? | | ########## # """???????????????????????h???? | | ?????????# # ?????????????????????h???? | | ?????????# # ?????????????????????????? | | ?????????# # ?????????????????????????? | | ?????????# #########Y#????????????????????????? | | ?????????# #???????###????????????????????????? | | ?????????# #?##########???????????????????????? | | ?????????# #?# %%=% "???????????????????????? | | ?????????# #?# ]!*[! "???????????????????????? | | ?????????# ### !=!] %""??????????????????????? | | ????????## %!% @"??????????????????????? | | ????????#" ""??????????????????????? | | ?????????# h p ""???????????????????????? | | ?????????# % xp p "????????????????????????? | | ??????#######+##; BB "????????????????????????? | | ??????# h h # B% "????????????????????????? | | ??????# h] ]# % "????????????????????????? | | ??????# #########????????????????????????? | | ??????# "" "" #????????????????????????????????? | | ??????# ""R"" #????????????????????????????????? | | ??????# """" #????????????????????????????????? | | ??????# #????????????????????????????????? | | ??????# #????????????????????????????????? | | ??????##/########????????????????????????????????? | | ?????#?# #???????????????????????????????????????? | | ?#### ## #####???????????????????????????????????? | | ?# ## # #???????????????????????????????????? | | ## # # #???????????????????????????????????? | | ## # ###???????????????????????????????????? | | + ##??????????????????????????????????? | | # #??????????????????????????????????? | | # ###??????????????????????????????????? | | # # ##???????????????????????????????????? | | # # #???????????????????????????????????? | | #### #???????????????????????????????????? | +----------------------------------------------------+ Best States ------------- Heat Dissipation 92 Coolant Potential 65 Energy Generation 33 Energy Capacity 500 Matter Stores 700 Matter Capacity 700 Sight Range 22 Robot Scan Range 16 Terrain Scan Density 10 Additional Mass Support 12 Base Temperature (-) 100 Armor Coverage 450 Propulsion Shielding 66 Point Defense Rating 160 Weapon Cycling 20 Phase Shifting 15 Evasion (%) 73 Targeting Accuracy 8 Target Analysis 8 Core Analysis 9 Recoil Reduction 5 Offensive Hacking 30 Defensive Hacking 12 Relay Coupler Types 11 Relay Coupler Value 649 Authchip Count 2 Trap Extractor Capacity 4 Item Schematics ----------------- Arm. Wheel | -9/Materials | Hacked Lgt. Treads | -9/Storage | Hacked Adv. Treads | -9/Storage | Hacked Imp. VTOL Module | -8/Materials | Scanalyzed Exp. Targeting Computer | -8/Materials | Scanalyzed Cargo Storage Unit | -8/Materials | Hacked Huge Storage Unit | -8/Materials | Hacked Cld. Impulse Thruster | -4/Factory | Scanalyzed Impulse Thruster Array | -4/Factory | Scanalyzed Imp. Quantum Reactor | -2/Testing | Archive Exp. Gyrokinetic Inverter | -2/Testing | Archive Exp. Weapon Shielding | -2/Testing | Archive Exp. Cooling System | -2/Testing | Archive Adv. Kinecellerator | -2/Testing | Archive Electron Diverter | -2/Testing | Archive Enh. Coil Gun | -2/Testing | Archive Femtoactuators | -2/Testing | Archive Exp. Flexi-carbon Leg | -2/Testing | Archive Robot Schematics ------------------ M-13 Machinist | -10/Materials | Hacked P-60 Hacker | -6/Factory | Hacked Fabricated ------------ Cld. Impulse Thruster | x1 | -4/Factory | Authchip Repaired ---------- Lgt. Treads | 18% | -10/Materials Imp. Assault Rifle | 42% | -9/Storage Imp. VTOL Module | 99% | -8/Materials | Broken Force Lance | 7% | -2/Testing Alien Tech Used ----------------- None Achievements -------------- None Challenges ------------ None Game ------ Seed BoltBraceScreen Manual? 0 Play Time 09:09:47 Cumulative 987.1 hours Start 2025.06.27 @ 19:42:22 End 2025.06.28 @ 22:13:17 Sessions 9 Manual Loads 0 Difficulty Rogue Special Mode None Game No. 506 Rogue 506 Adventurer 0 Explorer 0 Win Type - Total 23 Types 10/4/3/0/1/1/2/2/0/0 Lore% 87 Gallery% 88 Achievement% 83 Wizard Run 0 Options --------- Layout 0 ASCII 0 Keyboard 0 Movement Numpad Keybinds 0 Fullscreen 2 Font 24/Smallcaps Map View 76x50 Zoom Use 0% Tactical HUD 1 Map Filters NONE Filters SHIFT_HUE(315) Steam 1 RUN: 217b2c4d-b07c-43e5-96b1-a9b81633a054